Workbook

Sheet 家計記録
A1: 家計支出記録ノート
B3: 月分 | G3: 合計金額 | I3: =SUM(H6:H163) -> ¥0
A5: NO | B5: 日付 | C5: 費目 | E5: 詳細 | F5: 適用 | H5: 金額 | I5: 備考
A6: 1 | D6: =IF(C6="","",VLOOKUP(C6,費目・適用表!$A$3:$B$12,2,FALSE)) ->  | G6: =IF(F6="","",VLOOKUP(F6,費目・適用表!$A$16:$B$25,2,FALSE)) -> 
A7: 2 | D7: =IF(C7="","",VLOOKUP(C7,費目・適用表!$A$3:$B$12,2,FALSE)) ->  | G7: =IF(F7="","",VLOOKUP(F7,費目・適用表!$A$16:$B$25,2,FALSE)) -> 
A8: 3 | D8: =IF(C8="","",VLOOKUP(C8,費目・適用表!$A$3:$B$12,2,FALSE)) ->  | G8: =IF(F8="","",VLOOKUP(F8,費目・適用表!$A$16:$B$25,2,FALSE)) -> 
A9: 4 | D9: =IF(C9="","",VLOOKUP(C9,費目・適用表!$A$3:$B$12,2,FALSE)) ->  | G9: =IF(F9="","",VLOOKUP(F9,費目・適用表!$A$16:$B$25,2,FALSE)) -> 
A10: 5 | D10: =IF(C10="","",VLOOKUP(C10,費目・適用表!$A$3:$B$12,2,FALSE)) ->  | G10: =IF(F10="","",VLOOKUP(F10,費目・適用表!$A$16:$B$25,2,FALSE)) -> 
A11: 6 | D11: =IF(C11="","",VLOOKUP(C11,費目・適用表!$A$3:$B$12,2,FALSE)) ->  | G11: =IF(F11="","",VLOOKUP(F11,費目・適用表!$A$16:$B$25,2,FALSE)) -> 
A12: 7 | D12: =IF(C12="","",VLOOKUP(C12,費目・適用表!$A$3:$B$12,2,FALSE)) ->  | G12: =IF(F12="","",VLOOKUP(F12,費目・適用表!$A$16:$B$25,2,FALSE)) -> 
A13: 8 | D13: =IF(C13="","",VLOOKUP(C13,費目・適用表!$A$3:$B$12,2,FALSE)) ->  | G13: =IF(F13="","",VLOOKUP(F13,費目・適用表!$A$16:$B$25,2,FALSE)) -> 
A14: 9 | D14: =IF(C14="","",VLOOKUP(C14,費目・適用表!$A$3:$B$12,2,FALSE)) ->  | G14: =IF(F14="","",VLOOKUP(F14,費目・適用表!$A$16:$B$25,2,FALSE)) -> 
A15: 10 | D15: =IF(C15="","",VLOOKUP(C15,費目・適用表!$A$3:$B$12,2,FALSE)) ->  | G15: =IF(F15="","",VLOOKUP(F15,費目・適用表!$A$16:$B$25,2,FALSE)) -> 
A16: 11 | D16: =IF(C16="","",VLOOKUP(C16,費目・適用表!$A$3:$B$12,2,FALSE)) ->  | G16: =IF(F16="","",VLOOKUP(F16,費目・適用表!$A$16:$B$25,2,FALSE)) -> 
A17: 12 | D17: =IF(C17="","",VLOOKUP(C17,費目・適用表!$A$3:$B$12,2,FALSE)) ->  | G17: =IF(F17="","",VLOOKUP(F17,費目・適用表!$A$16:$B$25,2,FALSE)) -> 
A18: 13 | D18: =IF(C18="","",VLOOKUP(C18,費目・適用表!$A$3:$B$12,2,FALSE)) ->  | G18: =IF(F18="","",VLOOKUP(F18,費目・適用表!$A$16:$B$25,2,FALSE)) -> 
A19: 14 | D19: =IF(C19="","",VLOOKUP(C19,費目・適用表!$A$3:$B$12,2,FALSE)) ->  | G19: =IF(F19="","",VLOOKUP(F19,費目・適用表!$A$16:$B$25,2,FALSE)) -> 
A20: 15 | D20: =IF(C20="","",VLOOKUP(C20,費目・適用表!$A$3:$B$12,2,FALSE)) ->  | G20: =IF(F20="","",VLOOKUP(F20,費目・適用表!$A$16:$B$25,2,FALSE)) -> 
A21: 16 | D21: =IF(C21="","",VLOOKUP(C21,費目・適用表!$A$3:$B$12,2,FALSE)) ->  | G21: =IF(F21="","",VLOOKUP(F21,費目・適用表!$A$16:$B$25,2,FALSE)) -> 
A22: 17 | D22: =IF(C22="","",VLOOKUP(C22,費目・適用表!$A$3:$B$12,2,FALSE)) ->  | G22: =IF(F22="","",VLOOKUP(F22,費目・適用表!$A$16:$B$25,2,FALSE)) -> 
A23: 18 | D23: =IF(C23="","",VLOOKUP(C23,費目・適用表!$A$3:$B$12,2,FALSE)) ->  | G23: =IF(F23="","",VLOOKUP(F23,費目・適用表!$A$16:$B$25,2,FALSE)) -> 
A24: 19 | D24: =IF(C24="","",VLOOKUP(C24,費目・適用表!$A$3:$B$12,2,FALSE)) ->  | G24: =IF(F24="","",VLOOKUP(F24,費目・適用表!$A$16:$B$25,2,FALSE)) -> 
A25: 20 | D25: =IF(C25="","",VLOOKUP(C25,費目・適用表!$A$3:$B$12,2,FALSE)) ->  | G25: =IF(F25="","",VLOOKUP(F25,費目・適用表!$A$16:$B$25,2,FALSE)) -> 
A26: 21 | D26: =IF(C26="","",VLOOKUP(C26,費目・適用表!$A$3:$B$12,2,FALSE)) ->  | G26: =IF(F26="","",VLOOKUP(F26,費目・適用表!$A$16:$B$25,2,FALSE)) -> 
A27: 22 | D27: =IF(C27="","",VLOOKUP(C27,費目・適用表!$A$3:$B$12,2,FALSE)) ->  | G27: =IF(F27="","",VLOOKUP(F27,費目・適用表!$A$16:$B$25,2,FALSE)) -> 
A28: 23 | D28: =IF(C28="","",VLOOKUP(C28,費目・適用表!$A$3:$B$12,2,FALSE)) ->  | G28: =IF(F28="","",VLOOKUP(F28,費目・適用表!$A$16:$B$25,2,FALSE)) -> 
A29: 24 | D29: =IF(C29="","",VLOOKUP(C29,費目・適用表!$A$3:$B$12,2,FALSE)) ->  | G29: =IF(F29="","",VLOOKUP(F29,費目・適用表!$A$16:$B$25,2,FALSE)) -> 
A30: 25 | D30: =IF(C30="","",VLOOKUP(C30,費目・適用表!$A$3:$B$12,2,FALSE)) ->  | G30: =IF(F30="","",VLOOKUP(F30,費目・適用表!$A$16:$B$25,2,FALSE)) -> 
A31: 26 | D31: =IF(C31="","",VLOOKUP(C31,費目・適用表!$A$3:$B$12,2,FALSE)) ->  | G31: =IF(F31="","",VLOOKUP(F31,費目・適用表!$A$16:$B$25,2,FALSE)) -> 
A32: 27 | D32: =IF(C32="","",VLOOKUP(C32,費目・適用表!$A$3:$B$12,2,FALSE)) ->  | G32: =IF(F32="","",VLOOKUP(F32,費目・適用表!$A$16:$B$25,2,FALSE)) -> 
A33: 28 | D33: =IF(C33="","",VLOOKUP(C33,費目・適用表!$A$3:$B$12,2,FALSE)) ->  | G33: =IF(F33="","",VLOOKUP(F33,費目・適用表!$A$16:$B$25,2,FALSE)) -> 
A34: 29 | D34: =IF(C34="","",VLOOKUP(C34,費目・適用表!$A$3:$B$12,2,FALSE)) ->  | G34: =IF(F34="","",VLOOKUP(F34,費目・適用表!$A$16:$B$25,2,FALSE)) -> 
A35: 30 | D35: =IF(C35="","",VLOOKUP(C35,費目・適用表!$A$3:$B$12,2,FALSE)) ->  | G35: =IF(F35="","",VLOOKUP(F35,費目・適用表!$A$16:$B$25,2,FALSE)) -> 
A36: 31 | D36: =IF(C36="","",VLOOKUP(C36,費目・適用表!$A$3:$B$12,2,FALSE)) ->  | G36: =IF(F36="","",VLOOKUP(F36,費目・適用表!$A$16:$B$25,2,FALSE)) -> 
A37: 32 | D37: =IF(C37="","",VLOOKUP(C37,費目・適用表!$A$3:$B$12,2,FALSE)) ->  | G37: =IF(F37="","",VLOOKUP(F37,費目・適用表!$A$16:$B$25,2,FALSE)) -> 
A38: 33 | D38: =IF(C38="","",VLOOKUP(C38,費目・適用表!$A$3:$B$12,2,FALSE)) ->  | G38: =IF(F38="","",VLOOKUP(F38,費目・適用表!$A$16:$B$25,2,FALSE)) -> 
A39: 34 | D39: =IF(C39="","",VLOOKUP(C39,費目・適用表!$A$3:$B$12,2,FALSE)) ->  | G39: =IF(F39="","",VLOOKUP(F39,費目・適用表!$A$16:$B$25,2,FALSE)) -> 
A40: 35 | D40: =IF(C40="","",VLOOKUP(C40,費目・適用表!$A$3:$B$12,2,FALSE)) ->  | G40: =IF(F40="","",VLOOKUP(F40,費目・適用表!$A$16:$B$25,2,FALSE)) -> 
A41: 36 | D41: =IF(C41="","",VLOOKUP(C41,費目・適用表!$A$3:$B$12,2,FALSE)) ->  | G41: =IF(F41="","",VLOOKUP(F41,費目・適用表!$A$16:$B$25,2,FALSE)) -> 
A42: 37 | D42: =IF(C42="","",VLOOKUP(C42,費目・適用表!$A$3:$B$12,2,FALSE)) ->  | G42: =IF(F42="","",VLOOKUP(F42,費目・適用表!$A$16:$B$25,2,FALSE)) -> 
A43: 38 | D43: =IF(C43="","",VLOOKUP(C43,費目・適用表!$A$3:$B$12,2,FALSE)) ->  | G43: =IF(F43="","",VLOOKUP(F43,費目・適用表!$A$16:$B$25,2,FALSE)) -> 
A44: 39 | D44: =IF(C44="","",VLOOKUP(C44,費目・適用表!$A$3:$B$12,2,FALSE)) ->  | G44: =IF(F44="","",VLOOKUP(F44,費目・適用表!$A$16:$B$25,2,FALSE)) -> 
A45: 40 | D45: =IF(C45="","",VLOOKUP(C45,費目・適用表!$A$3:$B$12,2,FALSE)) ->  | G45: =IF(F45="","",VLOOKUP(F45,費目・適用表!$A$16:$B$25,2,FALSE)) -> 
A46: 41 | D46: =IF(C46="","",VLOOKUP(C46,費目・適用表!$A$3:$B$12,2,FALSE)) ->  | G46: =IF(F46="","",VLOOKUP(F46,費目・適用表!$A$16:$B$25,2,FALSE)) -> 
A47: 42 | D47: =IF(C47="","",VLOOKUP(C47,費目・適用表!$A$3:$B$12,2,FALSE)) ->  | G47: =IF(F47="","",VLOOKUP(F47,費目・適用表!$A$16:$B$25,2,FALSE)) -> 
A48: 43 | D48: =IF(C48="","",VLOOKUP(C48,費目・適用表!$A$3:$B$12,2,FALSE)) ->  | G48: =IF(F48="","",VLOOKUP(F48,費目・適用表!$A$16:$B$25,2,FALSE)) -> 
A49: 44 | D49: =IF(C49="","",VLOOKUP(C49,費目・適用表!$A$3:$B$12,2,FALSE)) ->  | G49: =IF(F49="","",VLOOKUP(F49,費目・適用表!$A$16:$B$25,2,FALSE)) -> 
A50: 45 | D50: =IF(C50="","",VLOOKUP(C50,費目・適用表!$A$3:$B$12,2,FALSE)) ->  | G50: =IF(F50="","",VLOOKUP(F50,費目・適用表!$A$16:$B$25,2,FALSE)) -> 
A51: 46 | D51: =IF(C51="","",VLOOKUP(C51,費目・適用表!$A$3:$B$12,2,FALSE)) ->  | G51: =IF(F51="","",VLOOKUP(F51,費目・適用表!$A$16:$B$25,2,FALSE)) -> 
A52: 47 | D52: =IF(C52="","",VLOOKUP(C52,費目・適用表!$A$3:$B$12,2,FALSE)) ->  | G52: =IF(F52="","",VLOOKUP(F52,費目・適用表!$A$16:$B$25,2,FALSE)) -> 
A53: 48 | D53: =IF(C53="","",VLOOKUP(C53,費目・適用表!$A$3:$B$12,2,FALSE)) ->  | G53: =IF(F53="","",VLOOKUP(F53,費目・適用表!$A$16:$B$25,2,FALSE)) -> 
A54: 49 | D54: =IF(C54="","",VLOOKUP(C54,費目・適用表!$A$3:$B$12,2,FALSE)) ->  | G54: =IF(F54="","",VLOOKUP(F54,費目・適用表!$A$16:$B$25,2,FALSE)) -> 
A55: 50 | D55: =IF(C55="","",VLOOKUP(C55,費目・適用表!$A$3:$B$12,2,FALSE)) ->  | G55: =IF(F55="","",VLOOKUP(F55,費目・適用表!$A$16:$B$25,2,FALSE)) -> 
A56: 51 | D56: =IF(C56="","",VLOOKUP(C56,費目・適用表!$A$3:$B$12,2,FALSE)) ->  | G56: =IF(F56="","",VLOOKUP(F56,費目・適用表!$A$16:$B$25,2,FALSE)) -> 
A57: 52 | D57: =IF(C57="","",VLOOKUP(C57,費目・適用表!$A$3:$B$12,2,FALSE)) ->  | G57: =IF(F57="","",VLOOKUP(F57,費目・適用表!$A$16:$B$25,2,FALSE)) -> 
A58: 53 | D58: =IF(C58="","",VLOOKUP(C58,費目・適用表!$A$3:$B$12,2,FALSE)) ->  | G58: =IF(F58="","",VLOOKUP(F58,費目・適用表!$A$16:$B$25,2,FALSE)) -> 
A59: 54 | D59: =IF(C59="","",VLOOKUP(C59,費目・適用表!$A$3:$B$12,2,FALSE)) ->  | G59: =IF(F59="","",VLOOKUP(F59,費目・適用表!$A$16:$B$25,2,FALSE)) -> 
A60: 55 | D60: =IF(C60="","",VLOOKUP(C60,費目・適用表!$A$3:$B$12,2,FALSE)) ->  | G60: =IF(F60="","",VLOOKUP(F60,費目・適用表!$A$16:$B$25,2,FALSE)) -> 
A61: 56 | D61: =IF(C61="","",VLOOKUP(C61,費目・適用表!$A$3:$B$12,2,FALSE)) ->  | G61: =IF(F61="","",VLOOKUP(F61,費目・適用表!$A$16:$B$25,2,FALSE)) -> 
A62: 57 | D62: =IF(C62="","",VLOOKUP(C62,費目・適用表!$A$3:$B$12,2,FALSE)) ->  | G62: =IF(F62="","",VLOOKUP(F62,費目・適用表!$A$16:$B$25,2,FALSE)) -> 
A63: 58 | D63: =IF(C63="","",VLOOKUP(C63,費目・適用表!$A$3:$B$12,2,FALSE)) ->  | G63: =IF(F63="","",VLOOKUP(F63,費目・適用表!$A$16:$B$25,2,FALSE)) -> 
A64: 59 | D64: =IF(C64="","",VLOOKUP(C64,費目・適用表!$A$3:$B$12,2,FALSE)) ->  | G64: =IF(F64="","",VLOOKUP(F64,費目・適用表!$A$16:$B$25,2,FALSE)) -> 
A65: 60 | D65: =IF(C65="","",VLOOKUP(C65,費目・適用表!$A$3:$B$12,2,FALSE)) ->  | G65: =IF(F65="","",VLOOKUP(F65,費目・適用表!$A$16:$B$25,2,FALSE)) -> 
A66: 61 | D66: =IF(C66="","",VLOOKUP(C66,費目・適用表!$A$3:$B$12,2,FALSE)) ->  | G66: =IF(F66="","",VLOOKUP(F66,費目・適用表!$A$16:$B$25,2,FALSE)) -> 
A67: 62 | D67: =IF(C67="","",VLOOKUP(C67,費目・適用表!$A$3:$B$12,2,FALSE)) ->  | G67: =IF(F67="","",VLOOKUP(F67,費目・適用表!$A$16:$B$25,2,FALSE)) -> 
A68: 63 | D68: =IF(C68="","",VLOOKUP(C68,費目・適用表!$A$3:$B$12,2,FALSE)) ->  | G68: =IF(F68="","",VLOOKUP(F68,費目・適用表!$A$16:$B$25,2,FALSE)) -> 
A69: 64 | D69: =IF(C69="","",VLOOKUP(C69,費目・適用表!$A$3:$B$12,2,FALSE)) ->  | G69: =IF(F69="","",VLOOKUP(F69,費目・適用表!$A$16:$B$25,2,FALSE)) -> 
A70: 65 | D70: =IF(C70="","",VLOOKUP(C70,費目・適用表!$A$3:$B$12,2,FALSE)) ->  | G70: =IF(F70="","",VLOOKUP(F70,費目・適用表!$A$16:$B$25,2,FALSE)) -> 
A71: 66 | D71: =IF(C71="","",VLOOKUP(C71,費目・適用表!$A$3:$B$12,2,FALSE)) ->  | G71: =IF(F71="","",VLOOKUP(F71,費目・適用表!$A$16:$B$25,2,FALSE)) -> 
A72: 67 | D72: =IF(C72="","",VLOOKUP(C72,費目・適用表!$A$3:$B$12,2,FALSE)) ->  | G72: =IF(F72="","",VLOOKUP(F72,費目・適用表!$A$16:$B$25,2,FALSE)) -> 
A73: 68 | D73: =IF(C73="","",VLOOKUP(C73,費目・適用表!$A$3:$B$12,2,FALSE)) ->  | G73: =IF(F73="","",VLOOKUP(F73,費目・適用表!$A$16:$B$25,2,FALSE)) -> 
A74: 69 | D74: =IF(C74="","",VLOOKUP(C74,費目・適用表!$A$3:$B$12,2,FALSE)) ->  | G74: =IF(F74="","",VLOOKUP(F74,費目・適用表!$A$16:$B$25,2,FALSE)) -> 
A75: 70 | D75: =IF(C75="","",VLOOKUP(C75,費目・適用表!$A$3:$B$12,2,FALSE)) ->  | G75: =IF(F75="","",VLOOKUP(F75,費目・適用表!$A$16:$B$25,2,FALSE)) -> 
A76: 71 | D76: =IF(C76="","",VLOOKUP(C76,費目・適用表!$A$3:$B$12,2,FALSE)) ->  | G76: =IF(F76="","",VLOOKUP(F76,費目・適用表!$A$16:$B$25,2,FALSE)) -> 
A77: 72 | D77: =IF(C77="","",VLOOKUP(C77,費目・適用表!$A$3:$B$12,2,FALSE)) ->  | G77: =IF(F77="","",VLOOKUP(F77,費目・適用表!$A$16:$B$25,2,FALSE)) -> 
A78: 73 | D78: =IF(C78="","",VLOOKUP(C78,費目・適用表!$A$3:$B$12,2,FALSE)) ->  | G78: =IF(F78="","",VLOOKUP(F78,費目・適用表!$A$16:$B$25,2,FALSE)) -> 
A79: 74 | D79: =IF(C79="","",VLOOKUP(C79,費目・適用表!$A$3:$B$12,2,FALSE)) ->  | G79: =IF(F79="","",VLOOKUP(F79,費目・適用表!$A$16:$B$25,2,FALSE)) -> 
A80: 75 | D80: =IF(C80="","",VLOOKUP(C80,費目・適用表!$A$3:$B$12,2,FALSE)) ->  | G80: =IF(F80="","",VLOOKUP(F80,費目・適用表!$A$16:$B$25,2,FALSE)) -> 
A81: 76 | D81: =IF(C81="","",VLOOKUP(C81,費目・適用表!$A$3:$B$12,2,FALSE)) ->  | G81: =IF(F81="","",VLOOKUP(F81,費目・適用表!$A$16:$B$25,2,FALSE)) -> 
A82: 77 | D82: =IF(C82="","",VLOOKUP(C82,費目・適用表!$A$3:$B$12,2,FALSE)) ->  | G82: =IF(F82="","",VLOOKUP(F82,費目・適用表!$A$16:$B$25,2,FALSE)) -> 
A83: 78 | D83: =IF(C83="","",VLOOKUP(C83,費目・適用表!$A$3:$B$12,2,FALSE)) ->  | G83: =IF(F83="","",VLOOKUP(F83,費目・適用表!$A$16:$B$25,2,FALSE)) -> 
A84: 79 | D84: =IF(C84="","",VLOOKUP(C84,費目・適用表!$A$3:$B$12,2,FALSE)) ->  | G84: =IF(F84="","",VLOOKUP(F84,費目・適用表!$A$16:$B$25,2,FALSE)) -> 
A85: 80 | D85: =IF(C85="","",VLOOKUP(C85,費目・適用表!$A$3:$B$12,2,FALSE)) ->  | G85: =IF(F85="","",VLOOKUP(F85,費目・適用表!$A$16:$B$25,2,FALSE)) -> 
A86: 81 | D86: =IF(C86="","",VLOOKUP(C86,費目・適用表!$A$3:$B$12,2,FALSE)) ->  | G86: =IF(F86="","",VLOOKUP(F86,費目・適用表!$A$16:$B$25,2,FALSE)) -> 
A87: 82 | D87: =IF(C87="","",VLOOKUP(C87,費目・適用表!$A$3:$B$12,2,FALSE)) ->  | G87: =IF(F87="","",VLOOKUP(F87,費目・適用表!$A$16:$B$25,2,FALSE)) -> 
A88: 83 | D88: =IF(C88="","",VLOOKUP(C88,費目・適用表!$A$3:$B$12,2,FALSE)) ->  | G88: =IF(F88="","",VLOOKUP(F88,費目・適用表!$A$16:$B$25,2,FALSE)) -> 
A89: 84 | D89: =IF(C89="","",VLOOKUP(C89,費目・適用表!$A$3:$B$12,2,FALSE)) ->  | G89: =IF(F89="","",VLOOKUP(F89,費目・適用表!$A$16:$B$25,2,FALSE)) -> 
A90: 85 | D90: =IF(C90="","",VLOOKUP(C90,費目・適用表!$A$3:$B$12,2,FALSE)) ->  | G90: =IF(F90="","",VLOOKUP(F90,費目・適用表!$A$16:$B$25,2,FALSE)) -> 
A91: 86 | D91: =IF(C91="","",VLOOKUP(C91,費目・適用表!$A$3:$B$12,2,FALSE)) ->  | G91: =IF(F91="","",VLOOKUP(F91,費目・適用表!$A$16:$B$25,2,FALSE)) -> 
A92: 87 | D92: =IF(C92="","",VLOOKUP(C92,費目・適用表!$A$3:$B$12,2,FALSE)) ->  | G92: =IF(F92="","",VLOOKUP(F92,費目・適用表!$A$16:$B$25,2,FALSE)) -> 
A93: 88 | D93: =IF(C93="","",VLOOKUP(C93,費目・適用表!$A$3:$B$12,2,FALSE)) ->  | G93: =IF(F93="","",VLOOKUP(F93,費目・適用表!$A$16:$B$25,2,FALSE)) -> 
A94: 89 | D94: =IF(C94="","",VLOOKUP(C94,費目・適用表!$A$3:$B$12,2,FALSE)) ->  | G94: =IF(F94="","",VLOOKUP(F94,費目・適用表!$A$16:$B$25,2,FALSE)) -> 
A95: 90 | D95: =IF(C95="","",VLOOKUP(C95,費目・適用表!$A$3:$B$12,2,FALSE)) ->  | G95: =IF(F95="","",VLOOKUP(F95,費目・適用表!$A$16:$B$25,2,FALSE)) -> 
A96: 91 | D96: =IF(C96="","",VLOOKUP(C96,費目・適用表!$A$3:$B$12,2,FALSE)) ->  | G96: =IF(F96="","",VLOOKUP(F96,費目・適用表!$A$16:$B$25,2,FALSE)) -> 
A97: 92 | D97: =IF(C97="","",VLOOKUP(C97,費目・適用表!$A$3:$B$12,2,FALSE)) ->  | G97: =IF(F97="","",VLOOKUP(F97,費目・適用表!$A$16:$B$25,2,FALSE)) -> 
A98: 93 | D98: =IF(C98="","",VLOOKUP(C98,費目・適用表!$A$3:$B$12,2,FALSE)) ->  | G98: =IF(F98="","",VLOOKUP(F98,費目・適用表!$A$16:$B$25,2,FALSE)) -> 
A99: 94 | D99: =IF(C99="","",VLOOKUP(C99,費目・適用表!$A$3:$B$12,2,FALSE)) ->  | G99: =IF(F99="","",VLOOKUP(F99,費目・適用表!$A$16:$B$25,2,FALSE)) -> 
A100: 95 | D100: =IF(C100="","",VLOOKUP(C100,費目・適用表!$A$3:$B$12,2,FALSE)) ->  | G100: =IF(F100="","",VLOOKUP(F100,費目・適用表!$A$16:$B$25,2,FALSE)) -> 
A101: 96 | D101: =IF(C101="","",VLOOKUP(C101,費目・適用表!$A$3:$B$12,2,FALSE)) ->  | G101: =IF(F101="","",VLOOKUP(F101,費目・適用表!$A$16:$B$25,2,FALSE)) -> 
A102: 97 | D102: =IF(C102="","",VLOOKUP(C102,費目・適用表!$A$3:$B$12,2,FALSE)) ->  | G102: =IF(F102="","",VLOOKUP(F102,費目・適用表!$A$16:$B$25,2,FALSE)) -> 
A103: 98 | D103: =IF(C103="","",VLOOKUP(C103,費目・適用表!$A$3:$B$12,2,FALSE)) ->  | G103: =IF(F103="","",VLOOKUP(F103,費目・適用表!$A$16:$B$25,2,FALSE)) -> 
A104: 99 | D104: =IF(C104="","",VLOOKUP(C104,費目・適用表!$A$3:$B$12,2,FALSE)) ->  | G104: =IF(F104="","",VLOOKUP(F104,費目・適用表!$A$16:$B$25,2,FALSE)) -> 
A105: 100 | D105: =IF(C105="","",VLOOKUP(C105,費目・適用表!$A$3:$B$12,2,FALSE)) ->  | G105: =IF(F105="","",VLOOKUP(F105,費目・適用表!$A$16:$B$25,2,FALSE)) -> 
A106: 101 | D106: =IF(C106="","",VLOOKUP(C106,費目・適用表!$A$3:$B$12,2,FALSE)) ->  | G106: =IF(F106="","",VLOOKUP(F106,費目・適用表!$A$16:$B$25,2,FALSE)) -> 
A107: 102 | D107: =IF(C107="","",VLOOKUP(C107,費目・適用表!$A$3:$B$12,2,FALSE)) ->  | G107: =IF(F107="","",VLOOKUP(F107,費目・適用表!$A$16:$B$25,2,FALSE)) -> 
A108: 103 | D108: =IF(C108="","",VLOOKUP(C108,費目・適用表!$A$3:$B$12,2,FALSE)) ->  | G108: =IF(F108="","",VLOOKUP(F108,費目・適用表!$A$16:$B$25,2,FALSE)) -> 
A109: 104 | D109: =IF(C109="","",VLOOKUP(C109,費目・適用表!$A$3:$B$12,2,FALSE)) ->  | G109: =IF(F109="","",VLOOKUP(F109,費目・適用表!$A$16:$B$25,2,FALSE)) -> 
A110: 105 | D110: =IF(C110="","",VLOOKUP(C110,費目・適用表!$A$3:$B$12,2,FALSE)) ->  | G110: =IF(F110="","",VLOOKUP(F110,費目・適用表!$A$16:$B$25,2,FALSE)) -> 
A111: 106 | D111: =IF(C111="","",VLOOKUP(C111,費目・適用表!$A$3:$B$12,2,FALSE)) ->  | G111: =IF(F111="","",VLOOKUP(F111,費目・適用表!$A$16:$B$25,2,FALSE)) -> 
A112: 107 | D112: =IF(C112="","",VLOOKUP(C112,費目・適用表!$A$3:$B$12,2,FALSE)) ->  | G112: =IF(F112="","",VLOOKUP(F112,費目・適用表!$A$16:$B$25,2,FALSE)) -> 
A113: 108 | D113: =IF(C113="","",VLOOKUP(C113,費目・適用表!$A$3:$B$12,2,FALSE)) ->  | G113: =IF(F113="","",VLOOKUP(F113,費目・適用表!$A$16:$B$25,2,FALSE)) -> 
A114: 109 | D114: =IF(C114="","",VLOOKUP(C114,費目・適用表!$A$3:$B$12,2,FALSE)) ->  | G114: =IF(F114="","",VLOOKUP(F114,費目・適用表!$A$16:$B$25,2,FALSE)) -> 
A115: 110 | D115: =IF(C115="","",VLOOKUP(C115,費目・適用表!$A$3:$B$12,2,FALSE)) ->  | G115: =IF(F115="","",VLOOKUP(F115,費目・適用表!$A$16:$B$25,2,FALSE)) -> 
A116: 111 | D116: =IF(C116="","",VLOOKUP(C116,費目・適用表!$A$3:$B$12,2,FALSE)) ->  | G116: =IF(F116="","",VLOOKUP(F116,費目・適用表!$A$16:$B$25,2,FALSE)) -> 
A117: 112 | D117: =IF(C117="","",VLOOKUP(C117,費目・適用表!$A$3:$B$12,2,FALSE)) ->  | G117: =IF(F117="","",VLOOKUP(F117,費目・適用表!$A$16:$B$25,2,FALSE)) -> 
A118: 113 | D118: =IF(C118="","",VLOOKUP(C118,費目・適用表!$A$3:$B$12,2,FALSE)) ->  | G118: =IF(F118="","",VLOOKUP(F118,費目・適用表!$A$16:$B$25,2,FALSE)) -> 
A119: 114 | D119: =IF(C119="","",VLOOKUP(C119,費目・適用表!$A$3:$B$12,2,FALSE)) ->  | G119: =IF(F119="","",VLOOKUP(F119,費目・適用表!$A$16:$B$25,2,FALSE)) -> 
A120: 115 | D120: =IF(C120="","",VLOOKUP(C120,費目・適用表!$A$3:$B$12,2,FALSE)) ->  | G120: =IF(F120="","",VLOOKUP(F120,費目・適用表!$A$16:$B$25,2,FALSE)) -> 
A121: 116 | D121: =IF(C121="","",VLOOKUP(C121,費目・適用表!$A$3:$B$12,2,FALSE)) ->  | G121: =IF(F121="","",VLOOKUP(F121,費目・適用表!$A$16:$B$25,2,FALSE)) -> 
A122: 117 | D122: =IF(C122="","",VLOOKUP(C122,費目・適用表!$A$3:$B$12,2,FALSE)) ->  | G122: =IF(F122="","",VLOOKUP(F122,費目・適用表!$A$16:$B$25,2,FALSE)) -> 
A123: 118 | D123: =IF(C123="","",VLOOKUP(C123,費目・適用表!$A$3:$B$12,2,FALSE)) ->  | G123: =IF(F123="","",VLOOKUP(F123,費目・適用表!$A$16:$B$25,2,FALSE)) -> 
A124: 119 | D124: =IF(C124="","",VLOOKUP(C124,費目・適用表!$A$3:$B$12,2,FALSE)) ->  | G124: =IF(F124="","",VLOOKUP(F124,費目・適用表!$A$16:$B$25,2,FALSE)) -> 
A125: 120 | D125: =IF(C125="","",VLOOKUP(C125,費目・適用表!$A$3:$B$12,2,FALSE)) ->  | G125: =IF(F125="","",VLOOKUP(F125,費目・適用表!$A$16:$B$25,2,FALSE)) -> 
A126: 121 | D126: =IF(C126="","",VLOOKUP(C126,費目・適用表!$A$3:$B$12,2,FALSE)) ->  | G126: =IF(F126="","",VLOOKUP(F126,費目・適用表!$A$16:$B$25,2,FALSE)) -> 
A127: 122 | D127: =IF(C127="","",VLOOKUP(C127,費目・適用表!$A$3:$B$12,2,FALSE)) ->  | G127: =IF(F127="","",VLOOKUP(F127,費目・適用表!$A$16:$B$25,2,FALSE)) -> 
A128: 123 | D128: =IF(C128="","",VLOOKUP(C128,費目・適用表!$A$3:$B$12,2,FALSE)) ->  | G128: =IF(F128="","",VLOOKUP(F128,費目・適用表!$A$16:$B$25,2,FALSE)) -> 
A129: 124 | D129: =IF(C129="","",VLOOKUP(C129,費目・適用表!$A$3:$B$12,2,FALSE)) ->  | G129: =IF(F129="","",VLOOKUP(F129,費目・適用表!$A$16:$B$25,2,FALSE)) -> 
A130: 125 | D130: =IF(C130="","",VLOOKUP(C130,費目・適用表!$A$3:$B$12,2,FALSE)) ->  | G130: =IF(F130="","",VLOOKUP(F130,費目・適用表!$A$16:$B$25,2,FALSE)) -> 
A131: 126 | D131: =IF(C131="","",VLOOKUP(C131,費目・適用表!$A$3:$B$12,2,FALSE)) ->  | G131: =IF(F131="","",VLOOKUP(F131,費目・適用表!$A$16:$B$25,2,FALSE)) -> 
A132: 127 | D132: =IF(C132="","",VLOOKUP(C132,費目・適用表!$A$3:$B$12,2,FALSE)) ->  | G132: =IF(F132="","",VLOOKUP(F132,費目・適用表!$A$16:$B$25,2,FALSE)) -> 
A133: 128 | D133: =IF(C133="","",VLOOKUP(C133,費目・適用表!$A$3:$B$12,2,FALSE)) ->  | G133: =IF(F133="","",VLOOKUP(F133,費目・適用表!$A$16:$B$25,2,FALSE)) -> 
A134: 129 | D134: =IF(C134="","",VLOOKUP(C134,費目・適用表!$A$3:$B$12,2,FALSE)) ->  | G134: =IF(F134="","",VLOOKUP(F134,費目・適用表!$A$16:$B$25,2,FALSE)) -> 
A135: 130 | D135: =IF(C135="","",VLOOKUP(C135,費目・適用表!$A$3:$B$12,2,FALSE)) ->  | G135: =IF(F135="","",VLOOKUP(F135,費目・適用表!$A$16:$B$25,2,FALSE)) -> 
A136: 131 | D136: =IF(C136="","",VLOOKUP(C136,費目・適用表!$A$3:$B$12,2,FALSE)) ->  | G136: =IF(F136="","",VLOOKUP(F136,費目・適用表!$A$16:$B$25,2,FALSE)) -> 
A137: 132 | D137: =IF(C137="","",VLOOKUP(C137,費目・適用表!$A$3:$B$12,2,FALSE)) ->  | G137: =IF(F137="","",VLOOKUP(F137,費目・適用表!$A$16:$B$25,2,FALSE)) -> 
A138: 133 | D138: =IF(C138="","",VLOOKUP(C138,費目・適用表!$A$3:$B$12,2,FALSE)) ->  | G138: =IF(F138="","",VLOOKUP(F138,費目・適用表!$A$16:$B$25,2,FALSE)) -> 
A139: 134 | D139: =IF(C139="","",VLOOKUP(C139,費目・適用表!$A$3:$B$12,2,FALSE)) ->  | G139: =IF(F139="","",VLOOKUP(F139,費目・適用表!$A$16:$B$25,2,FALSE)) -> 
A140: 135 | D140: =IF(C140="","",VLOOKUP(C140,費目・適用表!$A$3:$B$12,2,FALSE)) ->  | G140: =IF(F140="","",VLOOKUP(F140,費目・適用表!$A$16:$B$25,2,FALSE)) -> 
A141: 136 | D141: =IF(C141="","",VLOOKUP(C141,費目・適用表!$A$3:$B$12,2,FALSE)) ->  | G141: =IF(F141="","",VLOOKUP(F141,費目・適用表!$A$16:$B$25,2,FALSE)) -> 
A142: 137 | D142: =IF(C142="","",VLOOKUP(C142,費目・適用表!$A$3:$B$12,2,FALSE)) ->  | G142: =IF(F142="","",VLOOKUP(F142,費目・適用表!$A$16:$B$25,2,FALSE)) -> 
A143: 138 | D143: =IF(C143="","",VLOOKUP(C143,費目・適用表!$A$3:$B$12,2,FALSE)) ->  | G143: =IF(F143="","",VLOOKUP(F143,費目・適用表!$A$16:$B$25,2,FALSE)) -> 
A144: 139 | D144: =IF(C144="","",VLOOKUP(C144,費目・適用表!$A$3:$B$12,2,FALSE)) ->  | G144: =IF(F144="","",VLOOKUP(F144,費目・適用表!$A$16:$B$25,2,FALSE)) -> 
A145: 140 | D145: =IF(C145="","",VLOOKUP(C145,費目・適用表!$A$3:$B$12,2,FALSE)) ->  | G145: =IF(F145="","",VLOOKUP(F145,費目・適用表!$A$16:$B$25,2,FALSE)) -> 
A146: 141 | D146: =IF(C146="","",VLOOKUP(C146,費目・適用表!$A$3:$B$12,2,FALSE)) ->  | G146: =IF(F146="","",VLOOKUP(F146,費目・適用表!$A$16:$B$25,2,FALSE)) -> 
A147: 142 | D147: =IF(C147="","",VLOOKUP(C147,費目・適用表!$A$3:$B$12,2,FALSE)) ->  | G147: =IF(F147="","",VLOOKUP(F147,費目・適用表!$A$16:$B$25,2,FALSE)) -> 
A148: 143 | D148: =IF(C148="","",VLOOKUP(C148,費目・適用表!$A$3:$B$12,2,FALSE)) ->  | G148: =IF(F148="","",VLOOKUP(F148,費目・適用表!$A$16:$B$25,2,FALSE)) -> 
A149: 144 | D149: =IF(C149="","",VLOOKUP(C149,費目・適用表!$A$3:$B$12,2,FALSE)) ->  | G149: =IF(F149="","",VLOOKUP(F149,費目・適用表!$A$16:$B$25,2,FALSE)) -> 
A150: 145 | D150: =IF(C150="","",VLOOKUP(C150,費目・適用表!$A$3:$B$12,2,FALSE)) ->  | G150: =IF(F150="","",VLOOKUP(F150,費目・適用表!$A$16:$B$25,2,FALSE)) -> 
A151: 146 | D151: =IF(C151="","",VLOOKUP(C151,費目・適用表!$A$3:$B$12,2,FALSE)) ->  | G151: =IF(F151="","",VLOOKUP(F151,費目・適用表!$A$16:$B$25,2,FALSE)) -> 
A152: 147 | D152: =IF(C152="","",VLOOKUP(C152,費目・適用表!$A$3:$B$12,2,FALSE)) ->  | G152: =IF(F152="","",VLOOKUP(F152,費目・適用表!$A$16:$B$25,2,FALSE)) -> 
A153: 148 | D153: =IF(C153="","",VLOOKUP(C153,費目・適用表!$A$3:$B$12,2,FALSE)) ->  | G153: =IF(F153="","",VLOOKUP(F153,費目・適用表!$A$16:$B$25,2,FALSE)) -> 
A154: 149 | D154: =IF(C154="","",VLOOKUP(C154,費目・適用表!$A$3:$B$12,2,FALSE)) ->  | G154: =IF(F154="","",VLOOKUP(F154,費目・適用表!$A$16:$B$25,2,FALSE)) -> 
A155: 150 | D155: =IF(C155="","",VLOOKUP(C155,費目・適用表!$A$3:$B$12,2,FALSE)) ->  | G155: =IF(F155="","",VLOOKUP(F155,費目・適用表!$A$16:$B$25,2,FALSE)) -> 
A156: 151 | D156: =IF(C156="","",VLOOKUP(C156,費目・適用表!$A$3:$B$12,2,FALSE)) ->  | G156: =IF(F156="","",VLOOKUP(F156,費目・適用表!$A$16:$B$25,2,FALSE)) -> 
A157: 152 | D157: =IF(C157="","",VLOOKUP(C157,費目・適用表!$A$3:$B$12,2,FALSE)) ->  | G157: =IF(F157="","",VLOOKUP(F157,費目・適用表!$A$16:$B$25,2,FALSE)) -> 
A158: 153 | D158: =IF(C158="","",VLOOKUP(C158,費目・適用表!$A$3:$B$12,2,FALSE)) ->  | G158: =IF(F158="","",VLOOKUP(F158,費目・適用表!$A$16:$B$25,2,FALSE)) -> 
A159: 154 | D159: =IF(C159="","",VLOOKUP(C159,費目・適用表!$A$3:$B$12,2,FALSE)) ->  | G159: =IF(F159="","",VLOOKUP(F159,費目・適用表!$A$16:$B$25,2,FALSE)) -> 
A160: 155 | D160: =IF(C160="","",VLOOKUP(C160,費目・適用表!$A$3:$B$12,2,FALSE)) ->  | G160: =IF(F160="","",VLOOKUP(F160,費目・適用表!$A$16:$B$25,2,FALSE)) -> 
A161: 156 | D161: =IF(C161="","",VLOOKUP(C161,費目・適用表!$A$3:$B$12,2,FALSE)) ->  | G161: =IF(F161="","",VLOOKUP(F161,費目・適用表!$A$16:$B$25,2,FALSE)) -> 
A162: 157 | D162: =IF(C162="","",VLOOKUP(C162,費目・適用表!$A$3:$B$12,2,FALSE)) ->  | G162: =IF(F162="","",VLOOKUP(F162,費目・適用表!$A$16:$B$25,2,FALSE)) -> 
A163: 158 | D163: =IF(C163="","",VLOOKUP(C163,費目・適用表!$A$3:$B$12,2,FALSE)) ->  | G163: =IF(F163="","",VLOOKUP(F163,費目・適用表!$A$16:$B$25,2,FALSE)) -> 

Sheet 費目・適用表
A1: 費目表
A2: NO | B2: 費目名 | C2: 分類 | D2: 内容 | F2: ※薄い黄色のセルに自由に入力してください。 ※分類は 10 種類までに抑えましょう。 ※「NO」欄の数字は計算に使用していますので変更しないでください。
A3: 1
A4: 2
A5: 3
A6: 4
A7: 5
A8: 6
A9: 7
A10: 8
A11: 9
A12: 10
A14: 適用表
A15: NO | B15: 費目名 | C15: 分類 | D15: 内容
A16: 1
A17: 2
A18: 3
A19: 4
A20: 5
A21: 6
A22: 7
A23: 8
A24: 9
A25: 10

Sheet 家計分析
B1: 費目分析
B2: NO | C2: 費目名 | D2: 金額 | E2: 構成比 | M2: ※このシートは家計記録シートのデータから結果を表示するシートです。何も入力しません。
B3: 1 | C3: =IF(費目・適用表!B3="","",費目・適用表!B3) ->  | D3: =SUMIF(家計記録!$C$6:$D$163,1,家計記録!$H$6:$H$163) -> 0 | E3: =IF($D$13=0,"",D3/$D$13) -> 
B4: 2 | C4: =IF(費目・適用表!B4="","",費目・適用表!B4) ->  | D4: =SUMIF(家計記録!$C$6:$D$163,2,家計記録!$H$6:$H$163) -> 0 | E4: =IF($D$13=0,"",D4/$D$13) -> 
B5: 3 | C5: =IF(費目・適用表!B5="","",費目・適用表!B5) ->  | D5: =SUMIF(家計記録!$C$6:$D$163,3,家計記録!$H$6:$H$163) -> 0
B6: 4 | C6: =IF(費目・適用表!B6="","",費目・適用表!B6) ->  | D6: =SUMIF(家計記録!$C$6:$D$163,4,家計記録!$H$6:$H$163) -> 0
B7: 5 | C7: =IF(費目・適用表!B7="","",費目・適用表!B7) ->  | D7: =SUMIF(家計記録!$C$6:$D$163,5,家計記録!$H$6:$H$163) -> 0
B8: 6 | C8: =IF(費目・適用表!B8="","",費目・適用表!B8) ->  | D8: =SUMIF(家計記録!$C$6:$D$163,6,家計記録!$H$6:$H$163) -> 0
B9: 7 | C9: =IF(費目・適用表!B9="","",費目・適用表!B9) ->  | D9: =SUMIF(家計記録!$C$6:$D$163,7,家計記録!$H$6:$H$163) -> 0
B10: 8 | C10: =IF(費目・適用表!B10="","",費目・適用表!B10) ->  | D10: =SUMIF(家計記録!$C$6:$D$163,8,家計記録!$H$6:$H$163) -> 0
B11: 9 | C11: =IF(費目・適用表!B11="","",費目・適用表!B11) ->  | D11: =SUMIF(家計記録!$C$6:$D$163,9,家計記録!$H$6:$H$163) -> 0
B12: 10 | C12: =IF(費目・適用表!B12="","",費目・適用表!B12) ->  | D12: =SUMIF(家計記録!$C$6:$D$163,10,家計記録!$H$6:$H$163) -> 0
B13: 合計 | D13: =SUM(D3:D12) -> 0
B16: 適用分析
B17: NO | C17: 費目名 | D17: 金額 | E17: 構成比
B18: 1 | C18: =IF(費目・適用表!B16="","",費目・適用表!B16) ->  | D18: =SUMIF(家計記録!$F$6:$G$163,1,家計記録!$H$6:$H$163) -> 0 | E18: =IF($D$28=0,"",D18/$D$28) -> 
B19: 2 | C19: =IF(費目・適用表!B17="","",費目・適用表!B17) ->  | D19: =SUMIF(家計記録!$F$6:$G$163,2,家計記録!$H$6:$H$163) -> 0 | E19: =IF($D$28=0,"",D19/$D$28) -> 
B20: 3 | C20: =IF(費目・適用表!B18="","",費目・適用表!B18) ->  | D20: =SUMIF(家計記録!$F$6:$G$163,3,家計記録!$H$6:$H$163) -> 0
B21: 4 | C21: =IF(費目・適用表!B19="","",費目・適用表!B19) ->  | D21: =SUMIF(家計記録!$F$6:$G$163,4,家計記録!$H$6:$H$163) -> 0
B22: 5 | C22: =IF(費目・適用表!B20="","",費目・適用表!B20) ->  | D22: =SUMIF(家計記録!$F$6:$G$163,5,家計記録!$H$6:$H$163) -> 0
B23: 6 | C23: =IF(費目・適用表!B21="","",費目・適用表!B21) ->  | D23: =SUMIF(家計記録!$F$6:$G$163,6,家計記録!$H$6:$H$163) -> 0
B24: 7 | C24: =IF(費目・適用表!B22="","",費目・適用表!B22) ->  | D24: =SUMIF(家計記録!$F$6:$G$163,7,家計記録!$H$6:$H$163) -> 0
B25: 8 | C25: =IF(費目・適用表!B23="","",費目・適用表!B23) ->  | D25: =SUMIF(家計記録!$F$6:$G$163,8,家計記録!$H$6:$H$163) -> 0
B26: 9 | C26: =IF(費目・適用表!B24="","",費目・適用表!B24) ->  | D26: =SUMIF(家計記録!$F$6:$G$163,9,家計記録!$H$6:$H$163) -> 0
B27: 10 | C27: =IF(費目・適用表!B25="","",費目・適用表!B25) ->  | D27: =SUMIF(家計記録!$F$6:$G$163,10,家計記録!$H$6:$H$163) -> 0
B28: 合計 | D28: =SUM(D18:D27) -> 0 | E28: =IF($D$28=0,"",D28/$D$28) -> 

Sheet 家計記録使い方
A1: 家計支出記録ノート
A3: 6 | B3: 月分 | G3: 合計金額 | I3: =SUM(H6:H163) -> ¥171,150
A5: NO | B5: 日付 | C5: 費目 | E5: 詳細 | F5: 適用 | H5: 金額 | I5: 備考
A6: 1 | B6: 2008-06-01 | C6: 1 | D6: =IF(C6="","",VLOOKUP(C6,費目・適用表使い方!$A$3:$B$12,2,FALSE)) -> 日常費 | E6: ○○スーパー | F6: 1 | G6: =IF(F6="","",VLOOKUP(F6,費目・適用表使い方!$A$16:$B$25,2,FALSE)) -> 家計費 | H6: ¥2,800
A7: 2 | B7: 2008-06-01 | C7: 1 | D7: =IF(C7="","",VLOOKUP(C7,費目・適用表使い方!$A$3:$B$12,2,FALSE)) -> 日常費 | E7: ○×ドラッグ | F7: 1 | G7: =IF(F7="","",VLOOKUP(F7,費目・適用表使い方!$A$16:$B$25,2,FALSE)) -> 家計費 | H7: ¥1,850
A8: 3 | B8: 2008-06-02 | C8: 2 | D8: =IF(C8="","",VLOOKUP(C8,費目・適用表使い方!$A$3:$B$12,2,FALSE)) -> 住居費 | E8: 家賃 | F8: 1 | G8: =IF(F8="","",VLOOKUP(F8,費目・適用表使い方!$A$16:$B$25,2,FALSE)) -> 家計費 | H8: ¥88,000
A9: 4 | B9: 2008-06-02 | C9: 2 | D9: =IF(C9="","",VLOOKUP(C9,費目・適用表使い方!$A$3:$B$12,2,FALSE)) -> 住居費 | E9: 駐車場代 | F9: 1 | G9: =IF(F9="","",VLOOKUP(F9,費目・適用表使い方!$A$16:$B$25,2,FALSE)) -> 家計費 | H9: ¥10,000
A10: 5 | B10: 2008-06-03 | C10: 3 | D10: =IF(C10="","",VLOOKUP(C10,費目・適用表使い方!$A$3:$B$12,2,FALSE)) -> 光熱・通信費 | E10: 電気代 | F10: 1 | G10: =IF(F10="","",VLOOKUP(F10,費目・適用表使い方!$A$16:$B$25,2,FALSE)) -> 家計費 | H10: ¥8,800
A11: 6 | B11: 2008-06-03 | C11: 4 | D11: =IF(C11="","",VLOOKUP(C11,費目・適用表使い方!$A$3:$B$12,2,FALSE)) -> 子供費 | E11: スイミング月謝 | F11: 4 | G11: =IF(F11="","",VLOOKUP(F11,費目・適用表使い方!$A$16:$B$25,2,FALSE)) -> 一郎 | H11: ¥6,500
A12: 7 | B12: 2008-06-03 | C12: 4 | D12: =IF(C12="","",VLOOKUP(C12,費目・適用表使い方!$A$3:$B$12,2,FALSE)) -> 子供費 | E12: スイミング月謝 | F12: 5 | G12: =IF(F12="","",VLOOKUP(F12,費目・適用表使い方!$A$16:$B$25,2,FALSE)) -> 花子 | H12: ¥6,500
A13: 8 | B13: 2008-06-04 | C13: 5 | D13: =IF(C13="","",VLOOKUP(C13,費目・適用表使い方!$A$3:$B$12,2,FALSE)) -> その他 | E13: 美容院 | F13: 3 | G13: =IF(F13="","",VLOOKUP(F13,費目・適用表使い方!$A$16:$B$25,2,FALSE)) -> わたし | H13: ¥4,500
A14: 9 | B14: 2008-06-06 | C14: 5 | D14: =IF(C14="","",VLOOKUP(C14,費目・適用表使い方!$A$3:$B$12,2,FALSE)) -> その他 | E14: ゴルフ | F14: 2 | G14: =IF(F14="","",VLOOKUP(F14,費目・適用表使い方!$A$16:$B$25,2,FALSE)) -> お父さん | H14: ¥20,000
A15: 10 | B15: 2008-06-07 | C15: 1 | D15: =IF(C15="","",VLOOKUP(C15,費目・適用表使い方!$A$3:$B$12,2,FALSE)) -> 日常費 | E15: ○○スーパー | F15: 1 | G15: =IF(F15="","",VLOOKUP(F15,費目・適用表使い方!$A$16:$B$25,2,FALSE)) -> 家計費 | H15: ¥3,200
A16: 11 | B16: 2008-06-08 | C16: 5 | D16: =IF(C16="","",VLOOKUP(C16,費目・適用表使い方!$A$3:$B$12,2,FALSE)) -> その他 | E16: ランチ | F16: 3 | G16: =IF(F16="","",VLOOKUP(F16,費目・適用表使い方!$A$16:$B$25,2,FALSE)) -> わたし | H16: ¥1,200 | I16: ○○サークル
A17: 12 | B17: 2008-06-09 | C17: 4 | D17: =IF(C17="","",VLOOKUP(C17,費目・適用表使い方!$A$3:$B$12,2,FALSE)) -> 子供費 | E17: 遠足おかし | F17: 4 | G17: =IF(F17="","",VLOOKUP(F17,費目・適用表使い方!$A$16:$B$25,2,FALSE)) -> 一郎 | H17: ¥300
A18: 13 | B18: 2008-06-12 | C18: 4 | D18: =IF(C18="","",VLOOKUP(C18,費目・適用表使い方!$A$3:$B$12,2,FALSE)) -> 子供費 | E18: 遠足おかし | F18: 5 | G18: =IF(F18="","",VLOOKUP(F18,費目・適用表使い方!$A$16:$B$25,2,FALSE)) -> 花子 | H18: ¥200
A19: 14 | B19: 2008-06-15 | C19: 5 | D19: =IF(C19="","",VLOOKUP(C19,費目・適用表使い方!$A$3:$B$12,2,FALSE)) -> その他 | E19: インターネット代 | F19: 1 | G19: =IF(F19="","",VLOOKUP(F19,費目・適用表使い方!$A$16:$B$25,2,FALSE)) -> 家計費 | H19: ¥1,800
A20: 15 | B20: 2008-06-16 | C20: 3 | D20: =IF(C20="","",VLOOKUP(C20,費目・適用表使い方!$A$3:$B$12,2,FALSE)) -> 光熱・通信費 | E20: 電話代 | F20: 1 | G20: =IF(F20="","",VLOOKUP(F20,費目・適用表使い方!$A$16:$B$25,2,FALSE)) -> 家計費 | H20: ¥6,500
A21: 16 | B21: 2008-06-18 | C21: 5 | D21: =IF(C21="","",VLOOKUP(C21,費目・適用表使い方!$A$3:$B$12,2,FALSE)) -> その他 | E21: 携帯電話 | F21: 2 | G21: =IF(F21="","",VLOOKUP(F21,費目・適用表使い方!$A$16:$B$25,2,FALSE)) -> お父さん | H21: ¥5,800
A22: 17 | B22: 2008-06-18 | C22: 5 | D22: =IF(C22="","",VLOOKUP(C22,費目・適用表使い方!$A$3:$B$12,2,FALSE)) -> その他 | E22: 携帯電話 | F22: 3 | G22: =IF(F22="","",VLOOKUP(F22,費目・適用表使い方!$A$16:$B$25,2,FALSE)) -> わたし | H22: ¥3,200
A23: 18 | D23: =IF(C23="","",VLOOKUP(C23,費目・適用表使い方!$A$3:$B$12,2,FALSE)) ->  | G23: =IF(F23="","",VLOOKUP(F23,費目・適用表使い方!$A$16:$B$25,2,FALSE)) -> 
A24: 19 | D24: =IF(C24="","",VLOOKUP(C24,費目・適用表使い方!$A$3:$B$12,2,FALSE)) ->  | G24: =IF(F24="","",VLOOKUP(F24,費目・適用表使い方!$A$16:$B$25,2,FALSE)) -> 
A25: 20 | D25: =IF(C25="","",VLOOKUP(C25,費目・適用表使い方!$A$3:$B$12,2,FALSE)) ->  | G25: =IF(F25="","",VLOOKUP(F25,費目・適用表使い方!$A$16:$B$25,2,FALSE)) -> 
A26: 21 | D26: =IF(C26="","",VLOOKUP(C26,費目・適用表使い方!$A$3:$B$12,2,FALSE)) ->  | G26: =IF(F26="","",VLOOKUP(F26,費目・適用表使い方!$A$16:$B$25,2,FALSE)) -> 
A27: 22 | D27: =IF(C27="","",VLOOKUP(C27,費目・適用表使い方!$A$3:$B$12,2,FALSE)) ->  | G27: =IF(F27="","",VLOOKUP(F27,費目・適用表使い方!$A$16:$B$25,2,FALSE)) -> 
A28: 23 | D28: =IF(C28="","",VLOOKUP(C28,費目・適用表使い方!$A$3:$B$12,2,FALSE)) ->  | G28: =IF(F28="","",VLOOKUP(F28,費目・適用表使い方!$A$16:$B$25,2,FALSE)) -> 
A29: 24 | D29: =IF(C29="","",VLOOKUP(C29,費目・適用表使い方!$A$3:$B$12,2,FALSE)) ->  | G29: =IF(F29="","",VLOOKUP(F29,費目・適用表使い方!$A$16:$B$25,2,FALSE)) -> 
A30: 25 | D30: =IF(C30="","",VLOOKUP(C30,費目・適用表使い方!$A$3:$B$12,2,FALSE)) ->  | G30: =IF(F30="","",VLOOKUP(F30,費目・適用表使い方!$A$16:$B$25,2,FALSE)) -> 
A31: 26 | D31: =IF(C31="","",VLOOKUP(C31,費目・適用表使い方!$A$3:$B$12,2,FALSE)) ->  | G31: =IF(F31="","",VLOOKUP(F31,費目・適用表使い方!$A$16:$B$25,2,FALSE)) -> 
A32: 27 | D32: =IF(C32="","",VLOOKUP(C32,費目・適用表使い方!$A$3:$B$12,2,FALSE)) ->  | G32: =IF(F32="","",VLOOKUP(F32,費目・適用表使い方!$A$16:$B$25,2,FALSE)) -> 
A33: 28 | D33: =IF(C33="","",VLOOKUP(C33,費目・適用表使い方!$A$3:$B$12,2,FALSE)) ->  | G33: =IF(F33="","",VLOOKUP(F33,費目・適用表使い方!$A$16:$B$25,2,FALSE)) -> 
A34: 29 | D34: =IF(C34="","",VLOOKUP(C34,費目・適用表使い方!$A$3:$B$12,2,FALSE)) ->  | G34: =IF(F34="","",VLOOKUP(F34,費目・適用表使い方!$A$16:$B$25,2,FALSE)) -> 
A35: 30 | D35: =IF(C35="","",VLOOKUP(C35,費目・適用表使い方!$A$3:$B$12,2,FALSE)) ->  | G35: =IF(F35="","",VLOOKUP(F35,費目・適用表使い方!$A$16:$B$25,2,FALSE)) -> 
A36: 31 | D36: =IF(C36="","",VLOOKUP(C36,費目・適用表使い方!$A$3:$B$12,2,FALSE)) ->  | G36: =IF(F36="","",VLOOKUP(F36,費目・適用表使い方!$A$16:$B$25,2,FALSE)) -> 
A37: 32 | D37: =IF(C37="","",VLOOKUP(C37,費目・適用表使い方!$A$3:$B$12,2,FALSE)) ->  | G37: =IF(F37="","",VLOOKUP(F37,費目・適用表使い方!$A$16:$B$25,2,FALSE)) -> 
A38: 33 | D38: =IF(C38="","",VLOOKUP(C38,費目・適用表使い方!$A$3:$B$12,2,FALSE)) ->  | G38: =IF(F38="","",VLOOKUP(F38,費目・適用表使い方!$A$16:$B$25,2,FALSE)) -> 
A39: 34 | D39: =IF(C39="","",VLOOKUP(C39,費目・適用表使い方!$A$3:$B$12,2,FALSE)) ->  | G39: =IF(F39="","",VLOOKUP(F39,費目・適用表使い方!$A$16:$B$25,2,FALSE)) -> 
A40: 35 | D40: =IF(C40="","",VLOOKUP(C40,費目・適用表使い方!$A$3:$B$12,2,FALSE)) ->  | G40: =IF(F40="","",VLOOKUP(F40,費目・適用表使い方!$A$16:$B$25,2,FALSE)) -> 
A41: 36 | D41: =IF(C41="","",VLOOKUP(C41,費目・適用表使い方!$A$3:$B$12,2,FALSE)) ->  | G41: =IF(F41="","",VLOOKUP(F41,費目・適用表使い方!$A$16:$B$25,2,FALSE)) -> 
A42: 37 | D42: =IF(C42="","",VLOOKUP(C42,費目・適用表使い方!$A$3:$B$12,2,FALSE)) ->  | G42: =IF(F42="","",VLOOKUP(F42,費目・適用表使い方!$A$16:$B$25,2,FALSE)) -> 
A43: 38 | D43: =IF(C43="","",VLOOKUP(C43,費目・適用表使い方!$A$3:$B$12,2,FALSE)) ->  | G43: =IF(F43="","",VLOOKUP(F43,費目・適用表使い方!$A$16:$B$25,2,FALSE)) -> 
A44: 39 | D44: =IF(C44="","",VLOOKUP(C44,費目・適用表使い方!$A$3:$B$12,2,FALSE)) ->  | G44: =IF(F44="","",VLOOKUP(F44,費目・適用表使い方!$A$16:$B$25,2,FALSE)) -> 
A45: 40 | D45: =IF(C45="","",VLOOKUP(C45,費目・適用表使い方!$A$3:$B$12,2,FALSE)) ->  | G45: =IF(F45="","",VLOOKUP(F45,費目・適用表使い方!$A$16:$B$25,2,FALSE)) -> 
A46: 41 | D46: =IF(C46="","",VLOOKUP(C46,費目・適用表使い方!$A$3:$B$12,2,FALSE)) ->  | G46: =IF(F46="","",VLOOKUP(F46,費目・適用表使い方!$A$16:$B$25,2,FALSE)) -> 
A47: 42 | D47: =IF(C47="","",VLOOKUP(C47,費目・適用表使い方!$A$3:$B$12,2,FALSE)) ->  | G47: =IF(F47="","",VLOOKUP(F47,費目・適用表使い方!$A$16:$B$25,2,FALSE)) -> 
A48: 43 | D48: =IF(C48="","",VLOOKUP(C48,費目・適用表使い方!$A$3:$B$12,2,FALSE)) ->  | G48: =IF(F48="","",VLOOKUP(F48,費目・適用表使い方!$A$16:$B$25,2,FALSE)) -> 
A49: 44 | D49: =IF(C49="","",VLOOKUP(C49,費目・適用表使い方!$A$3:$B$12,2,FALSE)) ->  | G49: =IF(F49="","",VLOOKUP(F49,費目・適用表使い方!$A$16:$B$25,2,FALSE)) -> 
A50: 45 | D50: =IF(C50="","",VLOOKUP(C50,費目・適用表使い方!$A$3:$B$12,2,FALSE)) ->  | G50: =IF(F50="","",VLOOKUP(F50,費目・適用表使い方!$A$16:$B$25,2,FALSE)) -> 
A51: 46 | D51: =IF(C51="","",VLOOKUP(C51,費目・適用表使い方!$A$3:$B$12,2,FALSE)) ->  | G51: =IF(F51="","",VLOOKUP(F51,費目・適用表使い方!$A$16:$B$25,2,FALSE)) -> 
A52: 47 | D52: =IF(C52="","",VLOOKUP(C52,費目・適用表使い方!$A$3:$B$12,2,FALSE)) ->  | G52: =IF(F52="","",VLOOKUP(F52,費目・適用表使い方!$A$16:$B$25,2,FALSE)) -> 
A53: 48 | D53: =IF(C53="","",VLOOKUP(C53,費目・適用表使い方!$A$3:$B$12,2,FALSE)) ->  | G53: =IF(F53="","",VLOOKUP(F53,費目・適用表使い方!$A$16:$B$25,2,FALSE)) -> 
A54: 49 | D54: =IF(C54="","",VLOOKUP(C54,費目・適用表使い方!$A$3:$B$12,2,FALSE)) ->  | G54: =IF(F54="","",VLOOKUP(F54,費目・適用表使い方!$A$16:$B$25,2,FALSE)) -> 
A55: 50 | D55: =IF(C55="","",VLOOKUP(C55,費目・適用表使い方!$A$3:$B$12,2,FALSE)) ->  | G55: =IF(F55="","",VLOOKUP(F55,費目・適用表使い方!$A$16:$B$25,2,FALSE)) -> 
A56: 51 | D56: =IF(C56="","",VLOOKUP(C56,費目・適用表使い方!$A$3:$B$12,2,FALSE)) ->  | G56: =IF(F56="","",VLOOKUP(F56,費目・適用表使い方!$A$16:$B$25,2,FALSE)) -> 
A57: 52 | D57: =IF(C57="","",VLOOKUP(C57,費目・適用表使い方!$A$3:$B$12,2,FALSE)) ->  | G57: =IF(F57="","",VLOOKUP(F57,費目・適用表使い方!$A$16:$B$25,2,FALSE)) -> 
A58: 53 | D58: =IF(C58="","",VLOOKUP(C58,費目・適用表使い方!$A$3:$B$12,2,FALSE)) ->  | G58: =IF(F58="","",VLOOKUP(F58,費目・適用表使い方!$A$16:$B$25,2,FALSE)) -> 
A59: 54 | D59: =IF(C59="","",VLOOKUP(C59,費目・適用表使い方!$A$3:$B$12,2,FALSE)) ->  | G59: =IF(F59="","",VLOOKUP(F59,費目・適用表使い方!$A$16:$B$25,2,FALSE)) -> 
A60: 55 | D60: =IF(C60="","",VLOOKUP(C60,費目・適用表使い方!$A$3:$B$12,2,FALSE)) ->  | G60: =IF(F60="","",VLOOKUP(F60,費目・適用表使い方!$A$16:$B$25,2,FALSE)) -> 
A61: 56 | D61: =IF(C61="","",VLOOKUP(C61,費目・適用表使い方!$A$3:$B$12,2,FALSE)) ->  | G61: =IF(F61="","",VLOOKUP(F61,費目・適用表使い方!$A$16:$B$25,2,FALSE)) -> 
A62: 57 | D62: =IF(C62="","",VLOOKUP(C62,費目・適用表使い方!$A$3:$B$12,2,FALSE)) ->  | G62: =IF(F62="","",VLOOKUP(F62,費目・適用表使い方!$A$16:$B$25,2,FALSE)) -> 
A63: 58 | D63: =IF(C63="","",VLOOKUP(C63,費目・適用表使い方!$A$3:$B$12,2,FALSE)) ->  | G63: =IF(F63="","",VLOOKUP(F63,費目・適用表使い方!$A$16:$B$25,2,FALSE)) -> 
A64: 59 | D64: =IF(C64="","",VLOOKUP(C64,費目・適用表使い方!$A$3:$B$12,2,FALSE)) ->  | G64: =IF(F64="","",VLOOKUP(F64,費目・適用表使い方!$A$16:$B$25,2,FALSE)) -> 
A65: 60 | D65: =IF(C65="","",VLOOKUP(C65,費目・適用表使い方!$A$3:$B$12,2,FALSE)) ->  | G65: =IF(F65="","",VLOOKUP(F65,費目・適用表使い方!$A$16:$B$25,2,FALSE)) -> 
A66: 61 | D66: =IF(C66="","",VLOOKUP(C66,費目・適用表使い方!$A$3:$B$12,2,FALSE)) ->  | G66: =IF(F66="","",VLOOKUP(F66,費目・適用表使い方!$A$16:$B$25,2,FALSE)) -> 
A67: 62 | D67: =IF(C67="","",VLOOKUP(C67,費目・適用表使い方!$A$3:$B$12,2,FALSE)) ->  | G67: =IF(F67="","",VLOOKUP(F67,費目・適用表使い方!$A$16:$B$25,2,FALSE)) -> 
A68: 63 | D68: =IF(C68="","",VLOOKUP(C68,費目・適用表使い方!$A$3:$B$12,2,FALSE)) ->  | G68: =IF(F68="","",VLOOKUP(F68,費目・適用表使い方!$A$16:$B$25,2,FALSE)) -> 
A69: 64 | D69: =IF(C69="","",VLOOKUP(C69,費目・適用表使い方!$A$3:$B$12,2,FALSE)) ->  | G69: =IF(F69="","",VLOOKUP(F69,費目・適用表使い方!$A$16:$B$25,2,FALSE)) -> 
A70: 65 | D70: =IF(C70="","",VLOOKUP(C70,費目・適用表使い方!$A$3:$B$12,2,FALSE)) ->  | G70: =IF(F70="","",VLOOKUP(F70,費目・適用表使い方!$A$16:$B$25,2,FALSE)) -> 
A71: 66 | D71: =IF(C71="","",VLOOKUP(C71,費目・適用表使い方!$A$3:$B$12,2,FALSE)) ->  | G71: =IF(F71="","",VLOOKUP(F71,費目・適用表使い方!$A$16:$B$25,2,FALSE)) -> 
A72: 67 | D72: =IF(C72="","",VLOOKUP(C72,費目・適用表使い方!$A$3:$B$12,2,FALSE)) ->  | G72: =IF(F72="","",VLOOKUP(F72,費目・適用表使い方!$A$16:$B$25,2,FALSE)) -> 
A73: 68 | D73: =IF(C73="","",VLOOKUP(C73,費目・適用表使い方!$A$3:$B$12,2,FALSE)) ->  | G73: =IF(F73="","",VLOOKUP(F73,費目・適用表使い方!$A$16:$B$25,2,FALSE)) -> 
A74: 69 | D74: =IF(C74="","",VLOOKUP(C74,費目・適用表使い方!$A$3:$B$12,2,FALSE)) ->  | G74: =IF(F74="","",VLOOKUP(F74,費目・適用表使い方!$A$16:$B$25,2,FALSE)) -> 
A75: 70 | D75: =IF(C75="","",VLOOKUP(C75,費目・適用表使い方!$A$3:$B$12,2,FALSE)) ->  | G75: =IF(F75="","",VLOOKUP(F75,費目・適用表使い方!$A$16:$B$25,2,FALSE)) -> 
A76: 71 | D76: =IF(C76="","",VLOOKUP(C76,費目・適用表使い方!$A$3:$B$12,2,FALSE)) ->  | G76: =IF(F76="","",VLOOKUP(F76,費目・適用表使い方!$A$16:$B$25,2,FALSE)) -> 
A77: 72 | D77: =IF(C77="","",VLOOKUP(C77,費目・適用表使い方!$A$3:$B$12,2,FALSE)) ->  | G77: =IF(F77="","",VLOOKUP(F77,費目・適用表使い方!$A$16:$B$25,2,FALSE)) -> 
A78: 73 | D78: =IF(C78="","",VLOOKUP(C78,費目・適用表使い方!$A$3:$B$12,2,FALSE)) ->  | G78: =IF(F78="","",VLOOKUP(F78,費目・適用表使い方!$A$16:$B$25,2,FALSE)) -> 
A79: 74 | D79: =IF(C79="","",VLOOKUP(C79,費目・適用表使い方!$A$3:$B$12,2,FALSE)) ->  | G79: =IF(F79="","",VLOOKUP(F79,費目・適用表使い方!$A$16:$B$25,2,FALSE)) -> 
A80: 75 | D80: =IF(C80="","",VLOOKUP(C80,費目・適用表使い方!$A$3:$B$12,2,FALSE)) ->  | G80: =IF(F80="","",VLOOKUP(F80,費目・適用表使い方!$A$16:$B$25,2,FALSE)) -> 
A81: 76 | D81: =IF(C81="","",VLOOKUP(C81,費目・適用表使い方!$A$3:$B$12,2,FALSE)) ->  | G81: =IF(F81="","",VLOOKUP(F81,費目・適用表使い方!$A$16:$B$25,2,FALSE)) -> 
A82: 77 | D82: =IF(C82="","",VLOOKUP(C82,費目・適用表使い方!$A$3:$B$12,2,FALSE)) ->  | G82: =IF(F82="","",VLOOKUP(F82,費目・適用表使い方!$A$16:$B$25,2,FALSE)) -> 
A83: 78 | D83: =IF(C83="","",VLOOKUP(C83,費目・適用表使い方!$A$3:$B$12,2,FALSE)) ->  | G83: =IF(F83="","",VLOOKUP(F83,費目・適用表使い方!$A$16:$B$25,2,FALSE)) -> 
A84: 79 | D84: =IF(C84="","",VLOOKUP(C84,費目・適用表使い方!$A$3:$B$12,2,FALSE)) ->  | G84: =IF(F84="","",VLOOKUP(F84,費目・適用表使い方!$A$16:$B$25,2,FALSE)) -> 
A85: 80 | D85: =IF(C85="","",VLOOKUP(C85,費目・適用表使い方!$A$3:$B$12,2,FALSE)) ->  | G85: =IF(F85="","",VLOOKUP(F85,費目・適用表使い方!$A$16:$B$25,2,FALSE)) -> 
A86: 81 | D86: =IF(C86="","",VLOOKUP(C86,費目・適用表使い方!$A$3:$B$12,2,FALSE)) ->  | G86: =IF(F86="","",VLOOKUP(F86,費目・適用表使い方!$A$16:$B$25,2,FALSE)) -> 
A87: 82 | D87: =IF(C87="","",VLOOKUP(C87,費目・適用表使い方!$A$3:$B$12,2,FALSE)) ->  | G87: =IF(F87="","",VLOOKUP(F87,費目・適用表使い方!$A$16:$B$25,2,FALSE)) -> 
A88: 83 | D88: =IF(C88="","",VLOOKUP(C88,費目・適用表使い方!$A$3:$B$12,2,FALSE)) ->  | G88: =IF(F88="","",VLOOKUP(F88,費目・適用表使い方!$A$16:$B$25,2,FALSE)) -> 
A89: 84 | D89: =IF(C89="","",VLOOKUP(C89,費目・適用表使い方!$A$3:$B$12,2,FALSE)) ->  | G89: =IF(F89="","",VLOOKUP(F89,費目・適用表使い方!$A$16:$B$25,2,FALSE)) -> 
A90: 85 | D90: =IF(C90="","",VLOOKUP(C90,費目・適用表使い方!$A$3:$B$12,2,FALSE)) ->  | G90: =IF(F90="","",VLOOKUP(F90,費目・適用表使い方!$A$16:$B$25,2,FALSE)) -> 
A91: 86 | D91: =IF(C91="","",VLOOKUP(C91,費目・適用表使い方!$A$3:$B$12,2,FALSE)) ->  | G91: =IF(F91="","",VLOOKUP(F91,費目・適用表使い方!$A$16:$B$25,2,FALSE)) -> 
A92: 87 | D92: =IF(C92="","",VLOOKUP(C92,費目・適用表使い方!$A$3:$B$12,2,FALSE)) ->  | G92: =IF(F92="","",VLOOKUP(F92,費目・適用表使い方!$A$16:$B$25,2,FALSE)) -> 
A93: 88 | D93: =IF(C93="","",VLOOKUP(C93,費目・適用表使い方!$A$3:$B$12,2,FALSE)) ->  | G93: =IF(F93="","",VLOOKUP(F93,費目・適用表使い方!$A$16:$B$25,2,FALSE)) -> 
A94: 89 | D94: =IF(C94="","",VLOOKUP(C94,費目・適用表使い方!$A$3:$B$12,2,FALSE)) ->  | G94: =IF(F94="","",VLOOKUP(F94,費目・適用表使い方!$A$16:$B$25,2,FALSE)) -> 
A95: 90 | D95: =IF(C95="","",VLOOKUP(C95,費目・適用表使い方!$A$3:$B$12,2,FALSE)) ->  | G95: =IF(F95="","",VLOOKUP(F95,費目・適用表使い方!$A$16:$B$25,2,FALSE)) -> 
A96: 91 | D96: =IF(C96="","",VLOOKUP(C96,費目・適用表使い方!$A$3:$B$12,2,FALSE)) ->  | G96: =IF(F96="","",VLOOKUP(F96,費目・適用表使い方!$A$16:$B$25,2,FALSE)) -> 
A97: 92 | D97: =IF(C97="","",VLOOKUP(C97,費目・適用表使い方!$A$3:$B$12,2,FALSE)) ->  | G97: =IF(F97="","",VLOOKUP(F97,費目・適用表使い方!$A$16:$B$25,2,FALSE)) -> 
A98: 93 | D98: =IF(C98="","",VLOOKUP(C98,費目・適用表使い方!$A$3:$B$12,2,FALSE)) ->  | G98: =IF(F98="","",VLOOKUP(F98,費目・適用表使い方!$A$16:$B$25,2,FALSE)) -> 
A99: 94 | D99: =IF(C99="","",VLOOKUP(C99,費目・適用表使い方!$A$3:$B$12,2,FALSE)) ->  | G99: =IF(F99="","",VLOOKUP(F99,費目・適用表使い方!$A$16:$B$25,2,FALSE)) -> 
A100: 95 | D100: =IF(C100="","",VLOOKUP(C100,費目・適用表使い方!$A$3:$B$12,2,FALSE)) ->  | G100: =IF(F100="","",VLOOKUP(F100,費目・適用表使い方!$A$16:$B$25,2,FALSE)) -> 
A101: 96 | D101: =IF(C101="","",VLOOKUP(C101,費目・適用表使い方!$A$3:$B$12,2,FALSE)) ->  | G101: =IF(F101="","",VLOOKUP(F101,費目・適用表使い方!$A$16:$B$25,2,FALSE)) -> 
A102: 97 | D102: =IF(C102="","",VLOOKUP(C102,費目・適用表使い方!$A$3:$B$12,2,FALSE)) ->  | G102: =IF(F102="","",VLOOKUP(F102,費目・適用表使い方!$A$16:$B$25,2,FALSE)) -> 
A103: 98 | D103: =IF(C103="","",VLOOKUP(C103,費目・適用表使い方!$A$3:$B$12,2,FALSE)) ->  | G103: =IF(F103="","",VLOOKUP(F103,費目・適用表使い方!$A$16:$B$25,2,FALSE)) -> 
A104: 99 | D104: =IF(C104="","",VLOOKUP(C104,費目・適用表使い方!$A$3:$B$12,2,FALSE)) ->  | G104: =IF(F104="","",VLOOKUP(F104,費目・適用表使い方!$A$16:$B$25,2,FALSE)) -> 
A105: 100 | D105: =IF(C105="","",VLOOKUP(C105,費目・適用表使い方!$A$3:$B$12,2,FALSE)) ->  | G105: =IF(F105="","",VLOOKUP(F105,費目・適用表使い方!$A$16:$B$25,2,FALSE)) -> 
A106: 101 | D106: =IF(C106="","",VLOOKUP(C106,費目・適用表使い方!$A$3:$B$12,2,FALSE)) ->  | G106: =IF(F106="","",VLOOKUP(F106,費目・適用表使い方!$A$16:$B$25,2,FALSE)) -> 
A107: 102 | D107: =IF(C107="","",VLOOKUP(C107,費目・適用表使い方!$A$3:$B$12,2,FALSE)) ->  | G107: =IF(F107="","",VLOOKUP(F107,費目・適用表使い方!$A$16:$B$25,2,FALSE)) -> 
A108: 103 | D108: =IF(C108="","",VLOOKUP(C108,費目・適用表使い方!$A$3:$B$12,2,FALSE)) ->  | G108: =IF(F108="","",VLOOKUP(F108,費目・適用表使い方!$A$16:$B$25,2,FALSE)) -> 
A109: 104 | D109: =IF(C109="","",VLOOKUP(C109,費目・適用表使い方!$A$3:$B$12,2,FALSE)) ->  | G109: =IF(F109="","",VLOOKUP(F109,費目・適用表使い方!$A$16:$B$25,2,FALSE)) -> 
A110: 105 | D110: =IF(C110="","",VLOOKUP(C110,費目・適用表使い方!$A$3:$B$12,2,FALSE)) ->  | G110: =IF(F110="","",VLOOKUP(F110,費目・適用表使い方!$A$16:$B$25,2,FALSE)) -> 
A111: 106 | D111: =IF(C111="","",VLOOKUP(C111,費目・適用表使い方!$A$3:$B$12,2,FALSE)) ->  | G111: =IF(F111="","",VLOOKUP(F111,費目・適用表使い方!$A$16:$B$25,2,FALSE)) -> 
A112: 107 | D112: =IF(C112="","",VLOOKUP(C112,費目・適用表使い方!$A$3:$B$12,2,FALSE)) ->  | G112: =IF(F112="","",VLOOKUP(F112,費目・適用表使い方!$A$16:$B$25,2,FALSE)) -> 
A113: 108 | D113: =IF(C113="","",VLOOKUP(C113,費目・適用表使い方!$A$3:$B$12,2,FALSE)) ->  | G113: =IF(F113="","",VLOOKUP(F113,費目・適用表使い方!$A$16:$B$25,2,FALSE)) -> 
A114: 109 | D114: =IF(C114="","",VLOOKUP(C114,費目・適用表使い方!$A$3:$B$12,2,FALSE)) ->  | G114: =IF(F114="","",VLOOKUP(F114,費目・適用表使い方!$A$16:$B$25,2,FALSE)) -> 
A115: 110 | D115: =IF(C115="","",VLOOKUP(C115,費目・適用表使い方!$A$3:$B$12,2,FALSE)) ->  | G115: =IF(F115="","",VLOOKUP(F115,費目・適用表使い方!$A$16:$B$25,2,FALSE)) -> 
A116: 111 | D116: =IF(C116="","",VLOOKUP(C116,費目・適用表使い方!$A$3:$B$12,2,FALSE)) ->  | G116: =IF(F116="","",VLOOKUP(F116,費目・適用表使い方!$A$16:$B$25,2,FALSE)) -> 
A117: 112 | D117: =IF(C117="","",VLOOKUP(C117,費目・適用表使い方!$A$3:$B$12,2,FALSE)) ->  | G117: =IF(F117="","",VLOOKUP(F117,費目・適用表使い方!$A$16:$B$25,2,FALSE)) -> 
A118: 113 | D118: =IF(C118="","",VLOOKUP(C118,費目・適用表使い方!$A$3:$B$12,2,FALSE)) ->  | G118: =IF(F118="","",VLOOKUP(F118,費目・適用表使い方!$A$16:$B$25,2,FALSE)) -> 
A119: 114 | D119: =IF(C119="","",VLOOKUP(C119,費目・適用表使い方!$A$3:$B$12,2,FALSE)) ->  | G119: =IF(F119="","",VLOOKUP(F119,費目・適用表使い方!$A$16:$B$25,2,FALSE)) -> 
A120: 115 | D120: =IF(C120="","",VLOOKUP(C120,費目・適用表使い方!$A$3:$B$12,2,FALSE)) ->  | G120: =IF(F120="","",VLOOKUP(F120,費目・適用表使い方!$A$16:$B$25,2,FALSE)) -> 
A121: 116 | D121: =IF(C121="","",VLOOKUP(C121,費目・適用表使い方!$A$3:$B$12,2,FALSE)) ->  | G121: =IF(F121="","",VLOOKUP(F121,費目・適用表使い方!$A$16:$B$25,2,FALSE)) -> 
A122: 117 | D122: =IF(C122="","",VLOOKUP(C122,費目・適用表使い方!$A$3:$B$12,2,FALSE)) ->  | G122: =IF(F122="","",VLOOKUP(F122,費目・適用表使い方!$A$16:$B$25,2,FALSE)) -> 
A123: 118 | D123: =IF(C123="","",VLOOKUP(C123,費目・適用表使い方!$A$3:$B$12,2,FALSE)) ->  | G123: =IF(F123="","",VLOOKUP(F123,費目・適用表使い方!$A$16:$B$25,2,FALSE)) -> 
A124: 119 | D124: =IF(C124="","",VLOOKUP(C124,費目・適用表使い方!$A$3:$B$12,2,FALSE)) ->  | G124: =IF(F124="","",VLOOKUP(F124,費目・適用表使い方!$A$16:$B$25,2,FALSE)) -> 
A125: 120 | D125: =IF(C125="","",VLOOKUP(C125,費目・適用表使い方!$A$3:$B$12,2,FALSE)) ->  | G125: =IF(F125="","",VLOOKUP(F125,費目・適用表使い方!$A$16:$B$25,2,FALSE)) -> 
A126: 121 | D126: =IF(C126="","",VLOOKUP(C126,費目・適用表使い方!$A$3:$B$12,2,FALSE)) ->  | G126: =IF(F126="","",VLOOKUP(F126,費目・適用表使い方!$A$16:$B$25,2,FALSE)) -> 
A127: 122 | D127: =IF(C127="","",VLOOKUP(C127,費目・適用表使い方!$A$3:$B$12,2,FALSE)) ->  | G127: =IF(F127="","",VLOOKUP(F127,費目・適用表使い方!$A$16:$B$25,2,FALSE)) -> 
A128: 123 | D128: =IF(C128="","",VLOOKUP(C128,費目・適用表使い方!$A$3:$B$12,2,FALSE)) ->  | G128: =IF(F128="","",VLOOKUP(F128,費目・適用表使い方!$A$16:$B$25,2,FALSE)) -> 
A129: 124 | D129: =IF(C129="","",VLOOKUP(C129,費目・適用表使い方!$A$3:$B$12,2,FALSE)) ->  | G129: =IF(F129="","",VLOOKUP(F129,費目・適用表使い方!$A$16:$B$25,2,FALSE)) -> 
A130: 125 | D130: =IF(C130="","",VLOOKUP(C130,費目・適用表使い方!$A$3:$B$12,2,FALSE)) ->  | G130: =IF(F130="","",VLOOKUP(F130,費目・適用表使い方!$A$16:$B$25,2,FALSE)) -> 
A131: 126 | D131: =IF(C131="","",VLOOKUP(C131,費目・適用表使い方!$A$3:$B$12,2,FALSE)) ->  | G131: =IF(F131="","",VLOOKUP(F131,費目・適用表使い方!$A$16:$B$25,2,FALSE)) -> 
A132: 127 | D132: =IF(C132="","",VLOOKUP(C132,費目・適用表使い方!$A$3:$B$12,2,FALSE)) ->  | G132: =IF(F132="","",VLOOKUP(F132,費目・適用表使い方!$A$16:$B$25,2,FALSE)) -> 
A133: 128 | D133: =IF(C133="","",VLOOKUP(C133,費目・適用表使い方!$A$3:$B$12,2,FALSE)) ->  | G133: =IF(F133="","",VLOOKUP(F133,費目・適用表使い方!$A$16:$B$25,2,FALSE)) -> 
A134: 129 | D134: =IF(C134="","",VLOOKUP(C134,費目・適用表使い方!$A$3:$B$12,2,FALSE)) ->  | G134: =IF(F134="","",VLOOKUP(F134,費目・適用表使い方!$A$16:$B$25,2,FALSE)) -> 
A135: 130 | D135: =IF(C135="","",VLOOKUP(C135,費目・適用表使い方!$A$3:$B$12,2,FALSE)) ->  | G135: =IF(F135="","",VLOOKUP(F135,費目・適用表使い方!$A$16:$B$25,2,FALSE)) -> 
A136: 131 | D136: =IF(C136="","",VLOOKUP(C136,費目・適用表使い方!$A$3:$B$12,2,FALSE)) ->  | G136: =IF(F136="","",VLOOKUP(F136,費目・適用表使い方!$A$16:$B$25,2,FALSE)) -> 
A137: 132 | D137: =IF(C137="","",VLOOKUP(C137,費目・適用表使い方!$A$3:$B$12,2,FALSE)) ->  | G137: =IF(F137="","",VLOOKUP(F137,費目・適用表使い方!$A$16:$B$25,2,FALSE)) -> 
A138: 133 | D138: =IF(C138="","",VLOOKUP(C138,費目・適用表使い方!$A$3:$B$12,2,FALSE)) ->  | G138: =IF(F138="","",VLOOKUP(F138,費目・適用表使い方!$A$16:$B$25,2,FALSE)) -> 
A139: 134 | D139: =IF(C139="","",VLOOKUP(C139,費目・適用表使い方!$A$3:$B$12,2,FALSE)) ->  | G139: =IF(F139="","",VLOOKUP(F139,費目・適用表使い方!$A$16:$B$25,2,FALSE)) -> 
A140: 135 | D140: =IF(C140="","",VLOOKUP(C140,費目・適用表使い方!$A$3:$B$12,2,FALSE)) ->  | G140: =IF(F140="","",VLOOKUP(F140,費目・適用表使い方!$A$16:$B$25,2,FALSE)) -> 
A141: 136 | D141: =IF(C141="","",VLOOKUP(C141,費目・適用表使い方!$A$3:$B$12,2,FALSE)) ->  | G141: =IF(F141="","",VLOOKUP(F141,費目・適用表使い方!$A$16:$B$25,2,FALSE)) -> 
A142: 137 | D142: =IF(C142="","",VLOOKUP(C142,費目・適用表使い方!$A$3:$B$12,2,FALSE)) ->  | G142: =IF(F142="","",VLOOKUP(F142,費目・適用表使い方!$A$16:$B$25,2,FALSE)) -> 
A143: 138 | D143: =IF(C143="","",VLOOKUP(C143,費目・適用表使い方!$A$3:$B$12,2,FALSE)) ->  | G143: =IF(F143="","",VLOOKUP(F143,費目・適用表使い方!$A$16:$B$25,2,FALSE)) -> 
A144: 139 | D144: =IF(C144="","",VLOOKUP(C144,費目・適用表使い方!$A$3:$B$12,2,FALSE)) ->  | G144: =IF(F144="","",VLOOKUP(F144,費目・適用表使い方!$A$16:$B$25,2,FALSE)) -> 
A145: 140 | D145: =IF(C145="","",VLOOKUP(C145,費目・適用表使い方!$A$3:$B$12,2,FALSE)) ->  | G145: =IF(F145="","",VLOOKUP(F145,費目・適用表使い方!$A$16:$B$25,2,FALSE)) -> 
A146: 141 | D146: =IF(C146="","",VLOOKUP(C146,費目・適用表使い方!$A$3:$B$12,2,FALSE)) ->  | G146: =IF(F146="","",VLOOKUP(F146,費目・適用表使い方!$A$16:$B$25,2,FALSE)) -> 
A147: 142 | D147: =IF(C147="","",VLOOKUP(C147,費目・適用表使い方!$A$3:$B$12,2,FALSE)) ->  | G147: =IF(F147="","",VLOOKUP(F147,費目・適用表使い方!$A$16:$B$25,2,FALSE)) -> 
A148: 143 | D148: =IF(C148="","",VLOOKUP(C148,費目・適用表使い方!$A$3:$B$12,2,FALSE)) ->  | G148: =IF(F148="","",VLOOKUP(F148,費目・適用表使い方!$A$16:$B$25,2,FALSE)) -> 
A149: 144 | D149: =IF(C149="","",VLOOKUP(C149,費目・適用表使い方!$A$3:$B$12,2,FALSE)) ->  | G149: =IF(F149="","",VLOOKUP(F149,費目・適用表使い方!$A$16:$B$25,2,FALSE)) -> 
A150: 145 | D150: =IF(C150="","",VLOOKUP(C150,費目・適用表使い方!$A$3:$B$12,2,FALSE)) ->  | G150: =IF(F150="","",VLOOKUP(F150,費目・適用表使い方!$A$16:$B$25,2,FALSE)) -> 
A151: 146 | D151: =IF(C151="","",VLOOKUP(C151,費目・適用表使い方!$A$3:$B$12,2,FALSE)) ->  | G151: =IF(F151="","",VLOOKUP(F151,費目・適用表使い方!$A$16:$B$25,2,FALSE)) -> 
A152: 147 | D152: =IF(C152="","",VLOOKUP(C152,費目・適用表使い方!$A$3:$B$12,2,FALSE)) ->  | G152: =IF(F152="","",VLOOKUP(F152,費目・適用表使い方!$A$16:$B$25,2,FALSE)) -> 
A153: 148 | D153: =IF(C153="","",VLOOKUP(C153,費目・適用表使い方!$A$3:$B$12,2,FALSE)) ->  | G153: =IF(F153="","",VLOOKUP(F153,費目・適用表使い方!$A$16:$B$25,2,FALSE)) -> 
A154: 149 | D154: =IF(C154="","",VLOOKUP(C154,費目・適用表使い方!$A$3:$B$12,2,FALSE)) ->  | G154: =IF(F154="","",VLOOKUP(F154,費目・適用表使い方!$A$16:$B$25,2,FALSE)) -> 
A155: 150 | D155: =IF(C155="","",VLOOKUP(C155,費目・適用表使い方!$A$3:$B$12,2,FALSE)) ->  | G155: =IF(F155="","",VLOOKUP(F155,費目・適用表使い方!$A$16:$B$25,2,FALSE)) -> 
A156: 151 | D156: =IF(C156="","",VLOOKUP(C156,費目・適用表使い方!$A$3:$B$12,2,FALSE)) ->  | G156: =IF(F156="","",VLOOKUP(F156,費目・適用表使い方!$A$16:$B$25,2,FALSE)) -> 
A157: 152 | D157: =IF(C157="","",VLOOKUP(C157,費目・適用表使い方!$A$3:$B$12,2,FALSE)) ->  | G157: =IF(F157="","",VLOOKUP(F157,費目・適用表使い方!$A$16:$B$25,2,FALSE)) -> 
A158: 153 | D158: =IF(C158="","",VLOOKUP(C158,費目・適用表使い方!$A$3:$B$12,2,FALSE)) ->  | G158: =IF(F158="","",VLOOKUP(F158,費目・適用表使い方!$A$16:$B$25,2,FALSE)) -> 
A159: 154 | D159: =IF(C159="","",VLOOKUP(C159,費目・適用表使い方!$A$3:$B$12,2,FALSE)) ->  | G159: =IF(F159="","",VLOOKUP(F159,費目・適用表使い方!$A$16:$B$25,2,FALSE)) -> 
A160: 155 | D160: =IF(C160="","",VLOOKUP(C160,費目・適用表使い方!$A$3:$B$12,2,FALSE)) ->  | G160: =IF(F160="","",VLOOKUP(F160,費目・適用表使い方!$A$16:$B$25,2,FALSE)) -> 
A161: 156 | D161: =IF(C161="","",VLOOKUP(C161,費目・適用表使い方!$A$3:$B$12,2,FALSE)) ->  | G161: =IF(F161="","",VLOOKUP(F161,費目・適用表使い方!$A$16:$B$25,2,FALSE)) -> 
A162: 157 | D162: =IF(C162="","",VLOOKUP(C162,費目・適用表使い方!$A$3:$B$12,2,FALSE)) ->  | G162: =IF(F162="","",VLOOKUP(F162,費目・適用表使い方!$A$16:$B$25,2,FALSE)) -> 
A163: 158 | D163: =IF(C163="","",VLOOKUP(C163,費目・適用表使い方!$A$3:$B$12,2,FALSE)) ->  | G163: =IF(F163="","",VLOOKUP(F163,費目・適用表使い方!$A$16:$B$25,2,FALSE)) -> 

Sheet 費目・適用表使い方
A1: 費目表
A2: NO | B2: 費目名 | C2: 分類 | D2: 内容
A3: 1 | B3: 日常費 | C3: 食費・日用雑貨 | D3: 食品、衛生、新聞
A4: 2 | B4: 住居費 | C4: 住居関係（固定支出） | D4: 家賃、駐車場代、管理費、家具用品
A5: 3 | B5: 光熱・通信費 | C5: 住居関係（流動支出） | D5: 電気、ガス、水道、電話
A6: 4 | B6: 子供費 | C6: 子供関係全般 | D6: 教育、おこづかい、おけいこ、服
A7: 5 | B7: その他 | C7: 衣服、保険、通信、等上記以外すべて | D7: 被服費（子供以外）、保険、趣味、レジャー
A8: 6
A9: 7
A10: 8
A11: 9
A12: 10
A14: 適用表
A15: NO | B15: 費目名 | C15: 分類 | D15: 内容
A16: 1 | B16: 家計費 | C16: 家族全体に関わる費用
A17: 2 | B17: お父さん | C17: お父さんにかかる費用 | D17: こづかい、交際費、趣味、レジャー
A18: 3 | B18: わたし | C18: わたしにかかる費用 | D18: こづかい、交際費、趣味、レジャー、美容
A19: 4 | B19: 一郎 | C19: 一郎にかかる費用 | D19: こづかい、給食費、学用費、塾・おけいこ
A20: 5 | B20: 花子 | C20: 花子にかかる費用 | D20: こづかい、給食費、学用費、塾・おけいこ
A21: 6
A22: 7
A23: 8
A24: 9
A25: 10

Sheet 家計分析 使い方
B1: 費目分析
B2: NO | C2: 費目名 | D2: 金額 | E2: 構成比
B3: 1 | C3: =IF(費目・適用表!B3="","",費目・適用表!B3) ->  | D3: =SUMIF(家計記録使い方!$C$6:$D$163,1,家計記録使い方!$H$6:$H$163) -> 7850 | E3: =IF($D$13=0,"",D3/$D$13) -> 5%
B4: 2 | C4: =IF(費目・適用表!B4="","",費目・適用表!B4) ->  | D4: =SUMIF(家計記録使い方!$C$6:$D$163,2,家計記録使い方!$H$6:$H$163) -> 98000 | E4: =IF($D$13=0,"",D4/$D$13) -> 57%
B5: 3 | C5: =IF(費目・適用表!B5="","",費目・適用表!B5) ->  | D5: =SUMIF(家計記録使い方!$C$6:$D$163,3,家計記録使い方!$H$6:$H$163) -> 15300 | E5: 9%
B6: 4 | C6: =IF(費目・適用表!B6="","",費目・適用表!B6) ->  | D6: =SUMIF(家計記録使い方!$C$6:$D$163,4,家計記録使い方!$H$6:$H$163) -> 13500 | E6: 8%
B7: 5 | C7: =IF(費目・適用表!B7="","",費目・適用表!B7) ->  | D7: =SUMIF(家計記録使い方!$C$6:$D$163,5,家計記録使い方!$H$6:$H$163) -> 36500 | E7: 21%
B8: 6 | C8: =IF(費目・適用表!B8="","",費目・適用表!B8) ->  | D8: =SUMIF(家計記録使い方!$C$6:$D$163,6,家計記録使い方!$H$6:$H$163) -> 0 | E8: 0%
B9: 7 | C9: =IF(費目・適用表!B9="","",費目・適用表!B9) ->  | D9: =SUMIF(家計記録使い方!$C$6:$D$163,7,家計記録使い方!$H$6:$H$163) -> 0 | E9: 0%
B10: 8 | C10: =IF(費目・適用表!B10="","",費目・適用表!B10) ->  | D10: =SUMIF(家計記録使い方!$C$6:$D$163,8,家計記録使い方!$H$6:$H$163) -> 0 | E10: 0%
B11: 9 | C11: =IF(費目・適用表!B11="","",費目・適用表!B11) ->  | D11: =SUMIF(家計記録使い方!$C$6:$D$163,9,家計記録使い方!$H$6:$H$163) -> 0 | E11: 0%
B12: 10 | C12: =IF(費目・適用表!B12="","",費目・適用表!B12) ->  | D12: =SUMIF(家計記録使い方!$C$6:$D$163,10,家計記録使い方!$H$6:$H$163) -> 0 | E12: 0%
B13: 合計 | D13: =SUM(D3:D12) -> 171150 | E13: 100%
B16: 適用分析
B17: NO | C17: 費目名 | D17: 金額 | E17: 構成比
B18: 1 | C18: =IF(費目・適用表!B16="","",費目・適用表!B16) ->  | D18: =SUMIF(家計記録使い方!$F$6:$G$163,1,家計記録使い方!$H$6:$H$163) -> 122950 | E18: =IF($D$28=0,"",D18/$D$28) -> 72%
B19: 2 | C19: =IF(費目・適用表!B17="","",費目・適用表!B17) ->  | D19: =SUMIF(家計記録使い方!$F$6:$G$163,2,家計記録使い方!$H$6:$H$163) -> 25800 | E19: =IF($D$28=0,"",D19/$D$28) -> 15%
B20: 3 | C20: =IF(費目・適用表!B18="","",費目・適用表!B18) ->  | D20: =SUMIF(家計記録使い方!$F$6:$G$163,3,家計記録使い方!$H$6:$H$163) -> 8900 | E20: 5%
B21: 4 | C21: =IF(費目・適用表!B19="","",費目・適用表!B19) ->  | D21: =SUMIF(家計記録使い方!$F$6:$G$163,4,家計記録使い方!$H$6:$H$163) -> 6800 | E21: 4%
B22: 5 | C22: =IF(費目・適用表!B20="","",費目・適用表!B20) ->  | D22: =SUMIF(家計記録使い方!$F$6:$G$163,5,家計記録使い方!$H$6:$H$163) -> 6700 | E22: 4%
B23: 6 | C23: =IF(費目・適用表!B21="","",費目・適用表!B21) ->  | D23: =SUMIF(家計記録使い方!$F$6:$G$163,6,家計記録使い方!$H$6:$H$163) -> 0 | E23: 0%
B24: 7 | C24: =IF(費目・適用表!B22="","",費目・適用表!B22) ->  | D24: =SUMIF(家計記録使い方!$F$6:$G$163,7,家計記録使い方!$H$6:$H$163) -> 0 | E24: 0%
B25: 8 | C25: =IF(費目・適用表!B23="","",費目・適用表!B23) ->  | D25: =SUMIF(家計記録使い方!$F$6:$G$163,8,家計記録使い方!$H$6:$H$163) -> 0 | E25: 0%
B26: 9 | C26: =IF(費目・適用表!B24="","",費目・適用表!B24) ->  | D26: =SUMIF(家計記録使い方!$F$6:$G$163,9,家計記録使い方!$H$6:$H$163) -> 0 | E26: 0%
B27: 10 | C27: =IF(費目・適用表!B25="","",費目・適用表!B25) ->  | D27: =SUMIF(家計記録使い方!$F$6:$G$163,10,家計記録使い方!$H$6:$H$163) -> 0 | E27: 0%
B28: 合計 | D28: =SUM(D18:D27) -> 171150 | E28: =IF($D$28=0,"",D28/$D$28) -> 100%
